Workbook

Sheet Datos del hotel
B1: DATOS DEL HOTEL
B2: DATOS
B3: NOMBRE DEL HOTEL
A4: YEAR | B4: NOMBRE DE LA EMPRESA
A5: SEM | B5: CIF
A6: ID | B6: DIRECCIÓN DEL HOTEL
B7: CÓDIGO POSTAL
A8: D1 | B8: PROVINCIA
A9: D2 | B9: NÚMERO DE TELÉFONO | E9: * | F9: ** | G9: *** | H9: **** | I9: *****
A10: D3 | B10: FAX | E10: Complejo turístico/ resort – Nivel superior | F10: Complejo turístico/ resort – Nivel medio/bajo | G10: Hotel | H10: Hotel de congresos o negocios | I10: Apartamento turístico | J10: Bed & Breakfast (B&B) | K10: Camping | L10: De estancia prolongada
A11: D4 | B11: E-MAIL | E11: Urbano – en el centro de la ciudad | F11: Urbano – a las afueras de la ciudad | G11: Rural/de interior/pueblo | H11: De costa | I11: Interestatal (motel, hotel de carretera, o cercano a ella, aeropuerto, etc.) | J11: Pequeña ciudad metropolitana

Sheet Información
B1: ALOJAMIENTO – INFORMACIÓN GENÉRICA
B2: DATOS
B3: IDENTIFICACIÓN DEL ALOJAMIENTO | C3: ='Datos del hotel'!C3 -> 0
A4: YEAR | B4: AÑO (YEAR)
A5: SEM | B5: SEMANAS APERTURA DEL HOTEL POR AÑO (SEM)
A6: ID | B6: (CÓDIGO O NOMBRE) (ID)
A7: D1 | B7: PROVINCIA (D1) | C7: ='Datos del hotel'!C8 -> 0
A8: D2 | B8: NÚMERO DE ESTRELLAS (D2) | E8: * | F8: ** | G8: *** | H8: **** | I8: *****
A9: D3 | B9: TIPOLOGÍA DE ALOJAMIENTO (por categoría)(D3) | E9: Complejo turístico/ resort – Nivel superior | F9: Complejo turístico/ resort – Nivel medio/bajo | G9: Hotel | H9: Hotel de congresos o negocios | I9: Apartamento turístico | J9: Bed & Breakfast (B&B) | K9: Camping | L9: De estancia prolongada
A10: D4 | B10: TIPOLOGÍA DE ALOJAMIENTO (por ubicación) (D4) | E10: Urbano – en el centro de la ciudad | F10: Urbano – a las afueras de la ciudad | G10: Rural/de interior/pueblo | H10: De costa | I10: Interestatal (motel, hotel de carretera, o cercano a ella, aeropuerto, etc.) | J10: Pequeña ciudad metropolitana
A11: D5 | B11: FUNCIONAMIENTO (D5) | E11: Pertenece a una cadena hotelera | F11: Franquicia | G11: Independiente
A12: D6 | B12: ESCALA (D6) | E12: Cadenas de lujo | F12: Cadenas de alta gama nivel superior | G12: Cadenas de alta gama nivel medio | H12: Cadenas de media escala con comida y bebida | I12: Cadenas de media escala Sin comida y bebida | J12: Cadenas Económicas
A13: D7 | B13: ESTACIÓN DEL AÑO EN FUNCIONAMIENTO (D7) | E13: Verano | F13: Invierno | G13: Todo el año
A14: D8 | B14: PROPIEDAD (D8) | E14: Alquilado | F14: Propio
A15: D9 | B15: SUPERFICIE DEL ALOJAMIENTO (m2) (D9)
A16: D10 | B16: Nº DE HABITACIONES (Uds.) (D10)
A17: D11 | B17: Nº PERNOCTACIONES POR AÑO (huésped-noche/año) (D11)
A18: D12 | B18: Nº HABITACIONES OCUPADAS POR AÑO (habitaciones ocupadas/año) (D12)
A19: D13 | B19: SUPERFICIE DE HABITACIÓN ESTÁNDAR (M2) (D13)

Sheet Plan
B1: PLANIFICACIÓN Y EVALUACIÓN CIRCULAR
B2: DATOS
B3: INVERSIÓN | C3: VALORES
A4: P1B | B4: Fracción de la inversión vinculada a buenas prácticas circulares[1] hecha por el establecimiento (% sobre la inversión total de los últimos 3 ejercicios) (P1B)
B5: FORMACIÓN DE LA PLANTILLA | C5: VALORES
A6: P2B | B6: Plantilla que ha recibido formación relacionada con la circularidad (P2B) (% trabajadores que han recibido algún tipo de formación en circularidad en el último ejercicio)
B7: COMPROMISO CIRCULAR DE PROVEEDORES | C7: VALORES
A8: P3B | B8: Proveedores que operan con un código de conducta circular (P3B) (% del total de proveedores que operan bajo prácticas circulares)
B9: ACTUACIONES
B10: COMUNICACIÓN Y TRANSPARENCIA | C10: Sí/No
A11: PBP1 | B11: 1. Comunicaciones hechas a los clientes con recomendaciones o guías en materia de ahorro de energía, iluminación, climatización, ahorro de agua, servicio de bufés, separación de residuos en las habitaciones y recambio de toallas o sábanas, entre otras pautas. (PBP1) | E11: Sí | F11: No
B12: POLÍTICAS TRANSVERSALES – GOBERNANZA
B13: ACTUACIONES
B14: ESTRATEGÍA Y PLANIFICACIÓN DE LA ECONOMÍA CIRCULAR | C14: Sí/No
A15: PBP2 | B15: 2. El alojamiento trabaja en alguno de los principios básicos de la Economía Circular. (Ej. Reducción de residuos; Ahorro de energía y agua; Empleo de materias primas, materiales, productos o instalaciones sostenibles; Desarrollo de la economía local; Preservación de ecosistemas, etc.) (PBP2)
A16: PBP3 | B16: 3. El alojamiento ha desarrollado una Estrategia o Plan de circularidad, desarrollando los principios, objetivos, acciones y medidas, calendario de implantación, responsables y roles, indicadores, etc. (PBP3)
B17: MONITORIZACIÓN Y SEGUIMIENTO DE LA ECONOMÍA CIRCULAR | C17: Sí/No
A18: PBP4 | B18: 4. Se han establecido indicadores que permiten medir aspectos relacionados con la EC-(Ej. consumo y ahorro de agua y de energía, la cantidad de materiales sostenibles empleados, la cantidad de alimentos sostenibles, el desperdicio alimentario, la cantidad de residuos generados, entre otros (PBP4)
B19: OTROS DOCUMENTOS DE GOBERNANZA | C19: Sí/No
A20: PBP5 | B20: 5. Se redactan informes de sostenibilidad[1] (PBP5)
B21: POLÍTICA DE CONTRATACIÓN Y COMPRA SOSTENIBLE | C21: Sí/No
A22: PBP6 | B22: 6. El alojamiento selecciona a proveedores de proximidad o que cuentan con certificaciones de sostenibilidad (PBP6)
A23: PBP7 | B23: 7. El alojamiento compra productos (textiles, de limpieza y amenities, entre otros) que sean reacondicionables, reciclables, reparables, reutilizables, compostables, etc. y/o que vayan acompañados de información sobre el ciclo de vida del producto (PBP7)
B24: CERTIFICADOS, SELLOS Y ETIQUETAS MEDIOAMBIENTALES | C24: Sí/No
A25: PBP8 | B25: 8. El alojamiento dispone de algún certificado de sostenibilidad (PBP8) (Ej. Certificación Residuo Cero; Sistemas de Gestión Ambiental (ISO 140001); Sistema de Gestión de la Eficiencia Energética (ISO 50001); Verificación de la Huella Hídrica; Etiqueta ecológica tipo I – Ecolabel (ISO 14024); Etiqueta ecológica tipo II – Autodeclaración ambiental (ISO 14021); Etiqueta ecológica tipo III –Declaración ambiental o Global EDP (ISO 14025); Bioscore); Certificado de turismo sostenible; Certificado de agro alimentos; European Ecotourism Labelling Standard; Certificado PassivHaus; etc.)
B26: POLÍTICAS TRANSVERSALES – COLABORACIÓN Y ALIANZAS; PARTICIPACIÓN; COMUNICACIÓN, DIFUSIÓN Y TRANSPARENCIA
B27: ACTUACIONES
B28: RECONOCIMIENTOS | C28: Sí/No
A29: PBP9 | B29: 9. Se le ha otorgado al alojamiento algún premio por haber adoptado buenas prácticas de sostenibilidad y/o de economía circular (PBP9)
B30: COLABORACIÓN Y ALIANZAS | C30: Sí/No
A31: PBP10 | B31: 10. El alojamiento colabora y coopera con clientes, competidores, proveedores u otras organizaciones (ONGs, ayuntamientos, asociaciones, empresas de base tecnológica, hubs de innovación, entidades y asociaciones de investigación, organismos públicos de innovación, universidades, etc.) sobre sostenibilidad y/o circularidad. (PBP10)
B32: POLÍTICAS TRANSVERSALES – INNOVACIÓN Y DIGITALIZACIÓN
B33: ACTUACIONES
B34: DIGITALIZACIÓN | C34: Sí/No
A35: PBP11 | B35: 11. El alojamiento ha implantado herramientas y tecnologías digitales que contribuyen a la sostenibilidad y/o circularidad (PBP11) (Ej. Reservas a través de aplicaciones; Uso de código QR; carta o menú digital; etc.)
B36: POLÍTICAS TRANSVERSALES – EMPLEO Y FORMACIÓN
B37: ACTUACIONES
B38: EMPLEO | C38: Sí/No
A39: PBP12 | B39: 12. El alojamiento dispone de personal encargado de las tareas relacionadas con la EC
B40: FORMACIÓN | C40: Sí/No
B41: FORMACIÓN DE LA PLANTILLA
A42: PBP13 | B42: 13. Las personas que dirigen el establecimiento (gerencia y mandos intermedios) conocen qué es la economía circular y sus principios (PBP13)
A43: PBP14 | B43: 14. Desde la dirección del alojamiento se llevan a cabo tareas de concienciación para la plantilla en materia de sostenibilidad y/o economía circular (PBP14)
A44: PBP15 | B44: 15. El alojamiento ha realizado planes de formación para sus trabajadores en materias de EC.(Ej. ahorro de energía, ahorro de agua, gestión de residuos (reciclaje, reutilización, tratamiento de sustancias peligrosas, …), gestión de desperdicio alimentario, etc.) (PBP15)
B45: POLÍTICAS TRANSVERSALES – SERVICIOS SOSTENIBLES
B46: ACTUACIONES
B47: MOVILIDAD SOSTENIBLE | C47: Sí/No
A48: PBP16 | B48: 16. El alojamiento dispone de algún servicio asociado a la movilidad sostenible (PBP16) (Ej. Cargadores eléctricos en sus instalaciones para la recarga de vehículos, motocicletas, patinetes y bicicletas eléctricos; Aparca bicicletas; Ofrece el servicio de alquiler de vehículos, motocicletas, patinetes y bicicletas eléctricas o de bajas emisiones para los clientes y/o colabora con empresas del sector dedicadas a ello; Car-sharing/ coche compartido; Compartir taxi; Traslado al aeropuerto en grupos; Convenio con el transporte local; Alquiler de vehículos compartidos; Fomenta el uso de servicios de movilidad de clientes a través de soluciones sostenibles, etc.)
B49: OTROS SERVICIOS TURÍSTICOS SOSTENIBLES | C49: Sí/No
A50: PBP17 | B50: 17. El alojamiento ofrece algún producto y/o servicio turístico con menor huella de carbono(Ej. Gastroturismo ecológico; Ecoturismo; Actividades turísticas en el entorno local para dinamizar la economía rural; etc.) (PBP17)
B51: POLÍTICAS TRANSVERSALES – FINANCIACIÓN, INVERSIÓN Y ASPECTOS ECONÓMICOS, POLÍTICOS Y LEGALES
B52: ACTUACIONES
B53: ASPECTOS ECONÓMICOS, POLÍTICOS Y LEGALES | C53: Sí/No
A54: PBP18 | B54: 18. La dirección del alojamiento conoce la legislación sobre sostenibilidad y economía circular que le es de aplicación (PBP18) (Ej. Ley 15/2018, de 7 de junio, de turismo, ocio y hospitalidad de la Comunitat Valenciana; Ley 7/2022, de 8 de abril, de residuos y suelos contaminados para una economía circular; Ley 7/2022, de 16 de diciembre, de la Generalitat, de medidas fiscales para impulsar el turismo sostenible; Ley 3/2022, de 15 de junio, de medidas urgentes para la sostenibilidad y la circularidad del turismo de las Illes Balears; enlace al Código de Turismo del BOE; enlace a normativa de la Comunitat Valenciana; UNE 178501; UNE-ISO 21401; etc.)
B55: FINANCIACIÓN E INVERSIÓN | C55: Sí/No
A56: PBP19 | B56: 19. Se conocen los programas de financiación pública disponibles para implantar soluciones sostenibles y de economía circular, a nivel europeo, estatal o regional (PBP19) (Ej. Fondos de la Política de Cohesión; Fondo Social Europeo (FSE); Mecanismo para la Transición Justa; Fondo Europeo de Inversiones Estratégicas —ESFI—; Banco Europeo de Inversiones; Fondo para la Competitividad de las Empresas Turísticas —FOCIT— del Ministerio de Industria, Comercio y Turismo; PYME Circular del Ministerio para la Transición Ecológica y el Reto Demográfico; financiación de AXIS, ENISA, CDTI; etc.)

Sheet Energía
B1: ÁREA PRIORITARIA DE ENERGÍA
B2: DATOS
B3: HUELLA DE CARBONO | C3: VALORES
A4: E1B | B4: Huella de carbono anual (t CO2 eq. / año) (E1B)
B5: CERTIFICACIONES ENERGÉTICAS | C5: VALORES
A6: E2B | B6: Certificación energética del edificio (E2B) | E6: A | F6: B | G6: C | H6: D | I6: E | J6: F | K6: G
B7: PARÁMETROS ENERGÉTICOS | C7: VALORES | E7: 1 | F7: 0.8333333333 | G7: =4/6 -> 0.6666666667 | H7: =3/6 -> 0.5 | I7: =2/6 -> 0.3333333333 | J7: =1/6 -> 0.1666666667 | K7: 0
A8: E3B | B8: Capacidad de autoabastecimiento de energía (E3B) (% energía autogenerada/ autoconsumida de fuentes renovables respecto al total de energía consumida al año en el establecimiento)
A9: E4B | B9: Potencia renovable instalada (kWh) (E4B)
A10: E5B | B10: Capacidad de almacenamiento (kWh) (E5B)
B11: GESTIÓN Y CONSUMO RESPONSABLE DE ENERGÍA; EFICIENCIA ENERGÉTICA | E11: Sí | F11: No
B12: DATOS
B13: PARÁMETROS ENERGÉTICOS | C13: VALORES
A14: E6 | B14: Consumo anual total de energía del alojamiento (MWh/año) (E6)
A15: E7 | B15: Consumo anual de energía térmica del alojamiento (MWh/año) (E7)
A16: E8 | B16: Consumo anual de energía eléctrica del alojamiento (MWh/año) (E8)
B17: INSTALACIONES ELÉCTRICAS Y DE ILUMINACIÓN | C17: VALORES
A18: E9 | B18: Sistemas de iluminación (E9)
A19: E10 | B19: Electrodomésticos e instalaciones de cocina (E10)
A20: E11 | B20: Electrodomésticos e instalaciones de habitaciones (E11)
A21: E12 | B21: Ascensores (E12)
B22: ACTUACIONES
B23: ESTRATEGÍA DE COMPENSACIÓN DE HUELLA DE CARBONO | C23: Sí/No y VALOR
A24: EBP1 | B24: 1. Se llevan a cabo programas o iniciativas para compensar la huella de carbono de los procesos o servicios del alojamiento (EBP1) | E24: Sí | F24: No
A25: E13 | B25: Huella de carbono compensada (E13) (KWh/año)
B26: ESTRATEGÍA DE COMPENSACIÓN DE LA GESTIÓN DE ENERGÍA | C26: Sí/No
A27: EBP21 | B27: 2.1. El alojamiento sensibiliza y fomenta a los clientes que reduzcan el consumo de energía en el alojamiento (Ej. El alojamiento informa de la política medioambiental a los clientes al realizar el check-in; Proporciona información sobre ahorro de energía en sistemas de iluminación, así como en sistemas de climatización; etc.) (EBP2.1)
A28: EBP22 | B28: 2.2 El alojamiento sensibiliza y fomenta a los empleados que reduzcan el consumo de energía en el alojamiento (Ej. El alojamiento informa de la política medioambiental a los clientes al realizar el check-in; Proporciona información sobre ahorro de energía en sistemas de iluminación, así como en sistemas de climatización; etc.) (EBP2.2)
A29: EBP3 | B29: 3. El alojamiento dispone de planes de mantenimiento preventivo y predictivo de las instalaciones de gestión de energía (EBP3)
B30: MONITORIZACIÓN Y SEGUIMIENTO DE LA GESTIÓN DE ENERGÍA | C30: Sí/No
A31: EBP4 | B31: 4. El alojamiento dispone de algún sistema de gestión energética de habitaciones (Ej. Interruptor de tarjetas, Guest Room Management System GRMS)[1](EBP4)
B32: BUENAS PRÁCTICAS DE EFICIENCIA ENERGÉTICA | C32: Sí/No
B33: BUENAS PRÁCTICAS DE EFICIENCIA ENERGÉTICA EN LA INFRAESTRUCTURA DEL EDIFICIO
A34: EBP5 | B34: 5. El alojamiento ha llevado a cabo alguna actuación para la rehabilitación energética de los edificios (EBP5) (Ej. La envolvente térmica, las instalaciones térmicas, así como las instalaciones de iluminación son las adecuadas en términos de eficiencia energética, conforme a los últimos requerimientos técnicos de la normativa vigente)
A35: EBP61 | B35: 6.1 Aislantes en muros y paredes, en los últimos 2-3 años (EBP61) (Ej. En la construcción, reforma y/ o rehabilitación del alojamiento se ha empleado materiales aislantes en muros y paredes, conforme a los últimos requerimientos técnicos de la normativa vigente (Código Técnico de la Edificación (CTE); Reglamento de instalaciones térmicas de los edificios —RITE—; etc.)
A36: EBP62 | B36: 6.2. De aislamiento térmico de las instalaciones y equipamiento (EBP62) (Ej. En instalaciones de calderas, tuberías de distribución, acumuladores de ACS; en ventanas y puertas exteriores, cristaleras y otro tipo de carpintería; en la envolvente/ fachada exterior del alojamiento; en la cubierta; ..., conforme a los últimos requerimientos técnicos de la normativa vigente —CTE—; etc.)
A37: EBP7 | B37: 7. El alojamiento dispone de protecciones solares exteriores en las habitaciones, así como en otras zonas comunes, para mejorar la eficiencia energética. (EBP7) (Ej. Protecciones solares fijas o móviles; de distintos colores; Persianas, celosías, vidrio oscuro, cortinas, etc.)

Sheet Agua
B1: ÁREA PRIORITARIA DE AGUA
B2: DATOS
B3: CONSUMO Y CAPACIDAD | C3: VALORES
A4: A1B | B4: Capacidad de autoabastecimiento de agua (A1B). (% volumen de agua autocaptada y/o depurada respecto al total de agua en el establecimiento y en las instalaciones del mismo)
A5: A2B | B5: Consumo anual de agua (proveniente de la red pública) (A2B) (L/año)
B6: GESTIÓN Y CONSUMO RESPONSABLE DE AGUA
B7: ACTUACIONES
B8: ESTRATEGÍA Y PLANIFICACIÓN DE LA GESTIÓN DE AGUA | C8: Sí/No
A9: ABP1 | B9: 1. El alojamiento fomenta a los clientes que reduzcan el consumo de agua durante su estancia (ABP1) (Ej. El alojamiento proporciona información a los clientes sobre el ahorro de agua en aseos y baños, y sobre el consumo asociado al recambio de toallas y ropa de cama; En el alojamiento se cambia la ropa de cama y las toallas bajo pedido (en lugar de cambiarlas todos los días) para reducir el consumo de agua; Se colocan carteles en las habitaciones y aseos que informan sobre el coste real del servicio de gestión del agua; Se difunde la problemática que genera el desecho de elementos impropios al sistema de saneamiento (aceites, toallitas, productos de higiene femenina —compresas y tampones), bastoncillos de los oídos, …—; etc.) | E9: Sí | F9: No
A10: ABP2 | B10: 2. El alojamiento dispone de planes de mantenimiento preventivo y predictivo de las instalaciones de gestión del agua (ABP2)
B11: INSTALACIONES Y EQUIPAMIENTO ASOCIADOS A LA GESTIÓN DE AGUA | C11: Sí/No
A12: ABP3 | B12: 3. El alojamiento dispone de instalaciones de tratamiento, filtrado y reaprovechamiento de aguas (ABP3).(Ej. Construcción de aljibes para ahorrar agua de riego; Recogida y aprovechamiento de agua de lluvia; Reutilización del agua sobrante de piscinas; Utilizar agua regenerada para riego de jardines, huerto urbano, zonas verdes o sistemas de protección contra incendios; etc.)
A13: ABP41 | B13: 4.1. El alojamiento ha realizado alguna de estas prácticas circulares en materia de gestión y consumo responsable de agua en las instalaciones de las habitaciones (ABP41) (Ej. En los grifos de lavabos, bañeras y duchas se dispone de aireadores, difusores, grifos monomando, grifos temporizados, grifos de cierre automático, limitadores de caudal, entre otros; Los inodoros cuentan con doble pulsador, pulsador con interrupción de descarga en las cisternas y/ o con sensores; El alojamiento dispone de duchas en las habitaciones; etc.)
A14: ABP42 | B14: 4.2, El alojamiento ha realizado alguna de estas prácticas circulares en materia de gestión y consumo responsable de agua en otras instalaciones del alojamiento (AB42) (Ej. En los grifos de lavabos, bañeras y duchas se dispone de aireadores, difusores, grifos monomando, grifos temporizados, grifos de cierre automático, limitadores de caudal, entre otros; Los inodoros cuentan con doble pulsador, pulsador con interrupción de descarga en las cisternas y/ o con sensores; El alojamiento dispone de duchas en las habitaciones; etc.)
A15: ABP5 | B15: 5. El alojamiento dispone de especies vegetales autóctonas que requieren menor consumo de agua (ABP5)

Sheet Residuos
B1: ÁREA PRIORITARIA DE MATERIALES Y RESIDUOS
B2: DATOS
B3: JERARQUÍA DE RESIDUOS | C3: CÁLCULOS
A4: R1B | B4: Recogida selectiva de residuos (R1B) (m3/noche) (Volumen estimado, por pernoctación, de residuos recogidos selectivamente —suma de las fracciones de papel y cartón, vidrio, envases, entre otros—) | C4: =SUM(C10:C14/365) -> 0
A5: R2B | B5: Reciclaje de residuos de obras, reformas y demoliciones (R2B) (% de residuos reciclados de obras, reformas y demoliciones respecto al total de residuos de construcciones y demoliciones generados durante el último ejercicio, o, en su defecto, durante el último proyecto de obra)
B6: SOSTENIBILIDAD Y GESTIÓN DE RESIDUOS
B7: DATOS | E7: Sí | F7: No
B8: RESIDUOS GENERADOS EN EL ALOJAMIENTO | C8: CÁLCULOS
B9: Tipo de residuos | C9: Volumen (m3/año)
A10: R1 | B10: Residuos orgánicos (R1) | C10: =J43 -> 0
A11: R2 | B11: Residuos de plástico (R2) | C11: =J44 -> 0
A12: R3 | B12: Residuos de papel y cartón (R3) | C12: 0
A13: R4 | B13: Residuos de vidrio (R4) | C13: 0
A14: R5 | B14: Otros residuos recogidos selectivamente (R5) | C14: 0
A15: R6 | B15: Residuos no depositados selectivamente (R6) | C15: 0
B16: ACTUACIONES
B17: ESTRATEGÍA Y PLANIFICACIÓN DE LA GESTIÓN DE RESIDUOS | C17: Sí/No
A18: RBP1 | B18: 1. Se ha elaborado un plan de prevención y gestión de residuos generados en el alojamiento (RBP1)
A19: RBP2 | B19: 2. El alojamiento ha realizado alguna de estas prácticas circulares en materia de gestión de residuos, que no sean residuos orgánicos o de alimentación (RBP2) (Ej. Extender la vida del mobiliario, equipos, accesorios; Externalizar el servicio de lavandería, o fomentar el uso del car-sharing o compartir vehículo, etc.; Dar un nuevo uso a productos como las sábanas, toallas, manteles, etc.; Reparar los productos y las infraestructuras en mal estado; Donar mobiliario y equipamiento a otras organizaciones; Implantar sistemas de clasificación, separación y almacenamiento para la recogida selectiva de residuos en el establecimiento por los empleados; Reciclar las sábanas en mal estado para crear alfombras, trapos o aislamiento en materiales de construcción; etc.)
A20: RBP3 | B20: 3. El alojamiento fomenta que los clientes que separen los residuos generados durante su estancia (RBP3) (Ej. Colocación de recipientes diferenciados para cada tipo de residuo en las habitaciones y zonas comunes)
B21: SOSTENIBILIDAD DE PRODUCTOS, MATERIALES, ETC. | C21: Sí/No
A22: RBP41 | B22: 4.1. En el alojamiento se emplean productos químicos sostenibles (RBP41) (Ej. Productos de limpieza —desinfectantes y biocidas, productos de limpieza de instalaciones, productos de limpieza de productos textiles, entre otros—, así como productos de jardinería —fertilizantes, etc.—, o pinturas, que sean sostenibles o tengan etiquetado led ISO Type-1)
A23: RBP42 | B23: 4.2. En el alojamiento se emplean productos textiles sostenibles (RBP42). (Ej. Productos con etiqueta led ISO Type-1, o uniformes del personal del alojamiento que hayan sido elaborados con materiales sostenibles, entre otros)
A24: RBP43 | B24: 4.3. En el alojamiento se emplean productos de aseo y cosmética sostenibles (RBP43). (Ej. Geles, jabones, cepillos de dientes, cepillos de pelo, seda dental, esponjas, gorros de ducha, etc., que sean biodegradables o que tengan etiqueta led ISO Type-1; etc.)
A25: RBP44 | B25: 4.4. En el alojamiento se emplean equipamiento y mobiliario sostenible (RBP44) (Ej. Eco-mobiliario exterior e interior que tenga etiqueta led ISO Type-1; etc.)
A26: RBP45 | B26: 4.5. En el alojamiento se emplean otros productos sostenibles (RBP45). (Ej. Amenities[1] del alojamiento sostenibles; Impresoras con tintas no contaminantes que tengan etiqueta led ISO Type-1, etc.)
B27: GESTIÓN DE RESIDUOS | C27: Sí/No
B28: GESTIÓN DE RESIDUOS DE PRODUCTOS, ENVASES Y EMBALAJES (PACKAGING)
A29: RBP5 | B29: 5. Se ha realizado alguna actuación en el alojamiento para eliminar y minimizar los envases y embalajes, así como para sustituir los materiales de estos por otros más sostenibles (RBP5) (Ej. El alojamiento ha eliminado los plásticos de un solo uso como pajitas, bastoncillos, cubiertos, platos, etc.; Compra productos con el mínimo embalaje posible —Ej. Usa las mismas cajas para transvasar productos de los proveedores, entre otros—; Usa la modalidad de graneles frente a la opción de monodosis en productos de alimentación, etc.; Compra geles y jabones en dispensadores rellenables; El alojamiento cuenta con fuentes o dispensadores de agua rellenables —Ej. Aquaservice—.)
A30: RBP6 | B30: 6. Se ha realizado alguna actuación en el alojamiento para que ciertos envases y embalajes de plástico, papel y cartón y vidrio, sean reutilizables, reciclables o compostables (RBP6) (Ej. Envases de los amenities que sean compostables, biodegradables o de materiales a base de vegetales renovables, entre otros, o que cuenten con etiqueta led ISO Type-1, etc.)
A31: RBP7 | B31: 7. Se ha implantado en el alojamiento un sistema de depósito, devolución y retorno de los envases generados por la actividad (de vidrio, de plástico, de papel y cartón, etc.) (RBP7)
B32: GESTIÓN DE RESIDUOS DE MATERIALES DE INSTALACIONES, EQUIPOS E INFRAESTRUCTURA
A33: RBP8 | B33: 8. En las intervenciones del alojamiento (nueva construcción, reformas y rehabilitaciones) se ha utilizado materiales de construcción revalorizados o estos son sostenibles o cuentan con ecoetiqueta-led ISO Type-1 (RBP8)
A34: RBP9 | B34: 9. Se realiza un tratamiento adecuado posterior de los residuos de las intervenciones del alojamiento: Separar los residuos; Depositarlos en los contenedores correspondientes; Reutilizar; Reciclar y Revalorizar; etc. (RBP9). (Ej. Los residuos de hormigón, ladrillos, tejas y materiales cerámicos, madera, vidrio, plásticos, mezclas bituminosas, alquitrán de hulla y otros productos alquitranados, metales, tierra, piedras y lodos de drenaje, materiales de aislamiento y materiales de construcción que contengan amianto y los materiales de construcción a base de yeso, deben separarse en bandejas acondicionadas o en sacos de almacenamiento para su posterior gestión)
B42: Tipo de residuos | C42: Contenedor 1100L | D42: Contenedor 3200L | E42: Otro contenedor (L) | F42: Nº contenedores/semana | G42: % Llenado contenedores (promedio) | H42: Volumen (m3/semana) | I42: semanas | J42: Volumen (m3/año)
A43: R1 | B43: Residuos orgánicos (R1) | I43: =Información!C5 -> 0 | J43: =H43*I43 -> 0
A44: R2 | B44: Residuos de plástico (R2) LER 15 01 02 / 20 01 39 / | I44: =Información!C5 -> 0 | J44: =H44*I44 -> 0
A45: R3 | B45: Residuos de papel y cartón (R3) LER 15 01 01 / 20 01 01 | I45: =Información!C5 -> 0 | J45: 0
A46: R4 | B46: Residuos de vidrio (R4) LER 15 01 07 / 20 01 02 | I46: =Información!C5 -> 0 | J46: 0
A47: R5 | B47: Otros residuos recogidos selectivamente (R5) LER 15 01 03 / 15 01 04 / 20 01 08 / 20 01 10 /20 01 11 / 20 01 25 / 20 01 40 / 20 02 | I47: =Información!C5 -> 0 | J47: 0
A48: R6 | B48: Residuos no depositados selectivamente (R6) | I48: =Información!C5 -> 0 | J48: 0
B49: TOTAL | E49: - | F49: - | G49: - | H49: =SUM(H43:H48) -> 0 | I49: =Información!C5 -> 0 | J49: 0

Sheet Deperdicio alimentario
B1: ÁREA PRIORITARIA DE ALIMENTOS
B2: DATOS
B3: GASTO EN COMPRA SOSTENIBLE | C3: VALORES
A4: RA1B | B4: Consumo de productos de kilómetro cero[1](RA1B) (% sobre el total de gasto en alimentos y bebidas del establecimiento)
A5: RA2B | B5: Cesta de la compra que minimiza el uso de envases (RA2B) (% que representan los productos a granel y/o con envases reutilizables/ biodegradables sobre el total de partidas de gasto de aprovisionamientos del establecimiento)
B6: ORIGEN DE LOS PRODUCTOS ALIMENTARIOS Y REDUCCIÓN DEL DESPERDICIO DE ALIMENTOS
B7: DATOS | E7: Sí | F7: No
B8: ALIMENTOS NOS CONSUMIDOS | C8: Sí/No y VALOR
A9: RABP1 | B9: 1. Se lleva a cabo algún tipo de seguimiento para conocer la cantidad de alimentos no consumidos en el alojamiento (RABP1)
A10: RABP11 | B10: Fracción de alimentos no consumidos por diversas causas (RABP11) (Ej. Por estar deteriorados; Por estar caducados; Alimentos desechados por excedentes derivados de la preparación de comidas; Alimentos desechados por excedentes no consumidos por los clientes; etc.) (% de alimentos desechados respecto al total de alimentos disponibles en el alojamiento)
B11: ACTUACIONES
B12: ESTRATEGIA Y PLANIFICACIÓN DEL DESPERDICIO ALIMENTARIO | C12: Sí/No
A13: RABP2 | B13: 2. El alojamiento fomenta entre clientes la reducción del desperdicio alimentario durante su estancia (RABP2) (Ej. Formar, sensibilizar e informar a los clientes sobre la prevención y reducción del desperdicio de alimentos y el consumo responsable de alimentos, así como la problemática que genera el desecho de alimentos, etc)
B14: OPTIMIZACIÓN DEL CONSUMO DE ALIMENTOS | C14: Sí/No
A15: RABP3 | B15: 3. El alojamiento ha realizado alguna de estas prácticas circulares en materia de optimización del consumo de alimentos y reducción del desperdicio de alimentos (RABP3) (Ej. Realizar una gestión más eficiente de los alimentos; Flexibilizar los menús y adaptarlos a productos de temporada; Elaborar distintos tamaños de platos de comida; Disponer de equipos e infraestructura adecuada para garantizar la cadena de frío de los alimentos; Formar, sensibilizar e informar a los empleados y a los clientes sobre la prevención y reducción del desperdicio de alimentos; Medir en el alojamiento el desperdicio alimentario; etc.)
B16: ORIGEN DE LOS ALIMENTOS | C16: Sí/No
A17: RABP4 | B17: 4.El alojamiento proporciona en sus servicios de restauración bioalimentos, alimentos de origen orgánico y alimentos ecológicos y sostenibles[1] (RABP4)
B18: GESTIÓN DE RESIDUOS DE ALIMENTOS | C18: Sí/No
A19: RABP5 | B19: 1. El alojamiento ha realizado alguna de estas prácticas circulares en materia de gestión de residuos de alimentación y otros residuos orgánicos (RABP5) (Ej. Obtener compost para su uso en agricultura a partir de alimentos desechados; Destinar alimentos orgánicos desechados para fabricar piensos y alimentación animal; Obtener biogás u otros combustibles a partir de alimentos desechados y otros residuos orgánicos; Implantar sistemas de clasificación, separación y almacenamiento para la recogida selectiva de residuos alimentarios en el establecimiento; etc.)
A20: RABP6 | B20: 2. El alojamiento ofrece sus excedentes de alimentos a otros usuarios (RABP6) (Ej. Donación de alimentos a comedores sociales, ONGs, etc.; Usar aplicaciones digitales como Too Good To Go; etc.)

Sheet Evaluación
A1: EVALUACIÓN ECONOMÍQA CIRCULAR
L2: 2 | M2: 3 | N2: 4 | O2: 5 | P2: 6 | Q2: 12
A3: PLANIFICACIÓN Y EVALUACIÓN CIRCULAR | B3: INDICADOR | C3: VALOR INDICADOR | D3: PUNTUACIÓN ASIGNADA | E3: EVALUACIÓN | L3: Min | M3: Bajo | N3: Medio | O3: Alto | P3: Max | Q3: Puntuación max
A4: INVERSIÓN | B4: P1B | C4: =HLOOKUP(B4,'Datos y cálculos'!$A$1:$FI$2,2,FALSE) -> 0 | D4: =IF(C4<L4,0,IF(C4<P4,ABS((C4-L4)*Q4/(P4-L4)),Q4)) -> 0 | E4: =IF(C4<M4,"Bajo",IF(C4<N4,"Medio",IF(C4<O4,"Alto","Muy Alto"))) -> Bajo | L4: =VLOOKUP($B4,Scale!$A$2:$L$32,L$2,FALSE) -> 0 | M4: =VLOOKUP($B4,Scale!$A$2:$L$32,M$2,FALSE) -> 10 | N4: =VLOOKUP($B4,Scale!$A$2:$L$32,N$2,FALSE) -> 20 | O4: =VLOOKUP($B4,Scale!$A$2:$L$32,O$2,FALSE) -> 30 | P4: =VLOOKUP($B4,Scale!$A$2:$L$32,P$2,FALSE) -> 40 | Q4: =VLOOKUP($B4,Scale!$A$2:$L$32,Q$2,FALSE) -> 4
A5: FORMACIÓN DE LA PLANTILLA | B5: P2B | C5: =HLOOKUP(B5,'Datos y cálculos'!$A$1:$FI$2,2,FALSE) -> 0 | D5: =IF(C5<L5,0,IF(C5<P5,ABS((C5-L5)*Q5/(P5-L5)),Q5)) -> 0 | E5: Bajo | L5: =VLOOKUP($B5,Scale!$A$2:$L$32,L$2,FALSE) -> 0 | M5: =VLOOKUP($B5,Scale!$A$2:$L$32,M$2,FALSE) -> 25 | N5: =VLOOKUP($B5,Scale!$A$2:$L$32,N$2,FALSE) -> 50 | O5: =VLOOKUP($B5,Scale!$A$2:$L$32,O$2,FALSE) -> 75 | P5: =VLOOKUP($B5,Scale!$A$2:$L$32,P$2,FALSE) -> 100 | Q5: =VLOOKUP($B5,Scale!$A$2:$L$32,Q$2,FALSE) -> 1
A6: COMPROMISO CIRCULAR DE PROVEEDORES | B6: P3B | C6: =HLOOKUP(B6,'Datos y cálculos'!$A$1:$FI$2,2,FALSE) -> 0 | D6: =IF(C6<L6,0,IF(C6<P6,ABS((C6-L6)*Q6/(P6-L6)),Q6)) -> 0 | E6: Bajo | L6: =VLOOKUP($B6,Scale!$A$2:$L$32,L$2,FALSE) -> 0 | M6: =VLOOKUP($B6,Scale!$A$2:$L$32,M$2,FALSE) -> 25 | N6: =VLOOKUP($B6,Scale!$A$2:$L$32,N$2,FALSE) -> 50 | O6: =VLOOKUP($B6,Scale!$A$2:$L$32,O$2,FALSE) -> 75 | P6: =VLOOKUP($B6,Scale!$A$2:$L$32,P$2,FALSE) -> 100 | Q6: =VLOOKUP($B6,Scale!$A$2:$L$32,Q$2,FALSE) -> 1
A7: ACTUACIONES | B7: PBP | C7: =HLOOKUP(B7,'Datos y cálculos'!$A$1:$FI$2,2,FALSE) -> 0 | D7: =IF(C7<L7,0,IF(C7<P7,ABS((C7-L7)*Q7/(P7-L7)),Q7)) -> 0 | E7: =IF(C7<M7,"Bajo",IF(C7<N7,"Medio",IF(C7<O7,"Alto","Muy Alto"))) -> Bajo | L7: =VLOOKUP($B7,Scale!$A$2:$L$32,L$2,FALSE) -> 0 | M7: =VLOOKUP($B7,Scale!$A$2:$L$32,M$2,FALSE) -> 4.75 | N7: =VLOOKUP($B7,Scale!$A$2:$L$32,N$2,FALSE) -> 9.5 | O7: =VLOOKUP($B7,Scale!$A$2:$L$32,O$2,FALSE) -> 14.25 | P7: =VLOOKUP($B7,Scale!$A$2:$L$32,P$2,FALSE) -> 19 | Q7: =VLOOKUP($B7,Scale!$A$2:$L$32,Q$2,FALSE) -> 14
A9: ÁREA PRIORITARIA DE ENERGÍA | B9: INDICADOR | C9: VALOR INDICADOR | D9: PUNTUACIÓN ASIGNADA | E9: EVALUACIÓN
A10: CONSUMO ENERGÉTICO HUELLA DE CARBONO HAB OCUPADA | B10: E1B2 | C10: =HLOOKUP(B10,'Datos y cálculos'!$A$1:$FI$2,2,FALSE) ->  | D10: =IF(C10<P10,Q10,IF(C10<L10,ABS((C10-L10)*Q10/(P10-L10)),0)) ->  | E10: =IF(C10>M10,"Bajo",IF(C10>N10,"Medio",IF(C10>O10,"Alto","Muy Alto"))) ->  | L10: =VLOOKUP($B10,Scale!$A$2:$L$32,L$2,FALSE) -> 24.5 | M10: =VLOOKUP($B10,Scale!$A$2:$L$32,M$2,FALSE) -> 19 | N10: =VLOOKUP($B10,Scale!$A$2:$L$32,N$2,FALSE) -> 13.5 | O10: =VLOOKUP($B10,Scale!$A$2:$L$32,O$2,FALSE) -> 8 | P10: =VLOOKUP($B10,Scale!$A$2:$L$32,P$2,FALSE) -> 2.5 | Q10: =VLOOKUP($B10,Scale!$A$2:$L$32,Q$2,FALSE) -> 2
A11: CONSUMO ENERGÉTICO HUELLA DE CARBONO SUPERFICIE | B11: E1B3 | C11: =HLOOKUP(B11,'Datos y cálculos'!$A$1:$FI$2,2,FALSE) ->  | D11: =IF(C11<P11,Q11,IF(C11<L11,ABS((C11-L11)*Q11/(P11-L11)),0)) ->  | E11: =IF(C11>M11,"Bajo",IF(C11>N11,"Medio",IF(C11>O11,"Alto","Muy Alto"))) ->  | L11: =VLOOKUP($B11,Scale!$A$2:$L$32,L$2,FALSE) -> 85 | M11: =VLOOKUP($B11,Scale!$A$2:$L$32,M$2,FALSE) -> 70 | N11: =VLOOKUP($B11,Scale!$A$2:$L$32,N$2,FALSE) -> 55 | O11: =VLOOKUP($B11,Scale!$A$2:$L$32,O$2,FALSE) -> 40 | P11: =VLOOKUP($B11,Scale!$A$2:$L$32,P$2,FALSE) -> 25 | Q11: =VLOOKUP($B11,Scale!$A$2:$L$32,Q$2,FALSE) -> 2
A12: CERTIFICACIÓN ENERGÉTICA EDIFICIO | B12: E2B_val | C12: =HLOOKUP(B12,'Datos y cálculos'!$A$1:$FI$2,2,FALSE) ->  | D12: =IF(C12<L12,0,IF(C12<P12,ABS((C12-L12)*Q12/(P12-L12)),Q12)) ->  | E12: =IF(C12<M12,"Bajo",IF(C12<N12,"Medio",IF(C12<O12,"Alto","Muy Alto"))) ->  | L12: =VLOOKUP($B12,Scale!$A$2:$L$32,L$2,FALSE) -> 0 | M12: =VLOOKUP($B12,Scale!$A$2:$L$32,M$2,FALSE) -> 0.25 | N12: =VLOOKUP($B12,Scale!$A$2:$L$32,N$2,FALSE) -> 0.5 | O12: =VLOOKUP($B12,Scale!$A$2:$L$32,O$2,FALSE) -> 0.75 | P12: =VLOOKUP($B12,Scale!$A$2:$L$32,P$2,FALSE) -> 1 | Q12: =VLOOKUP($B12,Scale!$A$2:$L$32,Q$2,FALSE) -> 2
A13: CERTIFICACIÓN ENERGÉTICA INSTALACIONES | B13: EI | C13: =HLOOKUP(B13,'Datos y cálculos'!$A$1:$FI$2,2,FALSE) ->  | D13: =IF(C13<L13,0,IF(C13<P13,ABS((C13-L13)*Q13/(P13-L13)),Q13)) ->  | L13: =VLOOKUP($B13,Scale!$A$2:$L$32,L$2,FALSE) -> 0 | M13: =VLOOKUP($B13,Scale!$A$2:$L$32,M$2,FALSE) -> 0.25 | N13: =VLOOKUP($B13,Scale!$A$2:$L$32,N$2,FALSE) -> 0.5 | O13: =VLOOKUP($B13,Scale!$A$2:$L$32,O$2,FALSE) -> 0.75 | P13: =VLOOKUP($B13,Scale!$A$2:$L$32,P$2,FALSE) -> 1 | Q13: =VLOOKUP($B13,Scale!$A$2:$L$32,Q$2,FALSE) -> 2
A14: AUTOABASTECIMIENTO DE ENERGÍA | B14: E3B | C14: =HLOOKUP(B14,'Datos y cálculos'!$A$1:$FI$2,2,FALSE) -> 0 | D14: =IF(C14<L14,0,IF(C14<P14,ABS((C14-L14)*Q14/(P14-L14)),Q14)) -> 0 | E14: Bajo | L14: =VLOOKUP($B14,Scale!$A$2:$L$32,L$2,FALSE) -> 0 | M14: =VLOOKUP($B14,Scale!$A$2:$L$32,M$2,FALSE) -> 7.5 | N14: =VLOOKUP($B14,Scale!$A$2:$L$32,N$2,FALSE) -> 15 | O14: =VLOOKUP($B14,Scale!$A$2:$L$32,O$2,FALSE) -> 22.5 | P14: =VLOOKUP($B14,Scale!$A$2:$L$32,P$2,FALSE) -> 30 | Q14: =VLOOKUP($B14,Scale!$A$2:$L$32,Q$2,FALSE) -> 2
A15: CONSUMO ENERGÉTICO POR HUESPED | B15: E62 | C15: =HLOOKUP(B15,'Datos y cálculos'!$A$1:$FI$2,2,FALSE) ->  | D15: =IF(C15<P15,Q15,IF(C15<L15,ABS((C15-L15)*Q15/(P15-L15)),0)) ->  | E15: =IF(C15>M15,"Bajo",IF(C15>N15,"Medio",IF(C15>O15,"Alto","Muy Alto"))) ->  | L15: =VLOOKUP($B15,Scale!$A$2:$L$32,L$2,FALSE) -> 87.5 | M15: =VLOOKUP($B15,Scale!$A$2:$L$32,M$2,FALSE) -> 70 | N15: =VLOOKUP($B15,Scale!$A$2:$L$32,N$2,FALSE) -> 52.5 | O15: =VLOOKUP($B15,Scale!$A$2:$L$32,O$2,FALSE) -> 35 | P15: =VLOOKUP($B15,Scale!$A$2:$L$32,P$2,FALSE) -> 17.5 | Q15: =VLOOKUP($B15,Scale!$A$2:$L$32,Q$2,FALSE) -> 2
A16: CONSUMO ENERGÉTICO POR M2 | B16: E63 | C16: =HLOOKUP(B16,'Datos y cálculos'!$A$1:$FI$2,2,FALSE) ->  | D16: =IF(C16<P16,Q16,IF(C16<L16,ABS((C16-L16)*Q16/(P16-L16)),0)) ->  | E16: =IF(C16>M16,"Bajo",IF(C16>N16,"Medio",IF(C16>O16,"Alto","Muy Alto"))) ->  | L16: =VLOOKUP($B16,Scale!$A$2:$L$32,L$2,FALSE) -> 330 | M16: =VLOOKUP($B16,Scale!$A$2:$L$32,M$2,FALSE) -> 280 | N16: =VLOOKUP($B16,Scale!$A$2:$L$32,N$2,FALSE) -> 230 | O16: =VLOOKUP($B16,Scale!$A$2:$L$32,O$2,FALSE) -> 180 | P16: =VLOOKUP($B16,Scale!$A$2:$L$32,P$2,FALSE) -> 130 | Q16: =VLOOKUP($B16,Scale!$A$2:$L$32,Q$2,FALSE) -> 1
A17: ACTUACIONES | B17: EBP | C17: =HLOOKUP(B17,'Datos y cálculos'!$A$1:$FI$2,2,FALSE) -> 0 | D17: =IF(C17<L17,0,IF(C17<P17,ABS((C17-L17)*Q17/(P17-L17)),Q17)) -> 0 | E17: Bajo | L17: =VLOOKUP($B17,Scale!$A$2:$L$32,L$2,FALSE) -> 0 | M17: =VLOOKUP($B17,Scale!$A$2:$L$32,M$2,FALSE) -> 2 | N17: =VLOOKUP($B17,Scale!$A$2:$L$32,N$2,FALSE) -> 4 | O17: =VLOOKUP($B17,Scale!$A$2:$L$32,O$2,FALSE) -> 6 | P17: =VLOOKUP($B17,Scale!$A$2:$L$32,P$2,FALSE) -> 8 | Q17: =VLOOKUP($B17,Scale!$A$2:$L$32,Q$2,FALSE) -> 8
A19: ÁREA PRIORITARIA DE AGUA | B19: INDICADOR | C19: VALOR INDICADOR | D19: PUNTUACIÓN ASIGNADA | E19: EVALUACIÓN
A20: DATOS
A21: AUTOABASTECIMIENTO DE AGUA | B21: A1B | C21: =HLOOKUP(B21,'Datos y cálculos'!$A$1:$FI$2,2,FALSE) -> 0 | D21: =IF(C21<L21,0,IF(C21<P21,ABS((C21-L21)*Q21/(P21-L21)),Q21)) -> 0 | E21: =IF(C21<M21,"Bajo",IF(C21<N21,"Medio",IF(C21<O21,"Alto","Muy Alto"))) -> Bajo | L21: =VLOOKUP($B21,Scale!$A$2:$L$32,L$2,FALSE) -> 0 | M21: =VLOOKUP($B21,Scale!$A$2:$L$32,M$2,FALSE) -> 25 | N21: =VLOOKUP($B21,Scale!$A$2:$L$32,N$2,FALSE) -> 50 | O21: =VLOOKUP($B21,Scale!$A$2:$L$32,O$2,FALSE) -> 75 | P21: =VLOOKUP($B21,Scale!$A$2:$L$32,P$2,FALSE) -> 100 | Q21: =VLOOKUP($B21,Scale!$A$2:$L$32,Q$2,FALSE) -> 4
A22: CONSUMO DE AGUA POR HABITACIÓN | B22: A2B2 | C22: =HLOOKUP(B22,'Datos y cálculos'!$A$1:$FI$2,2,FALSE) ->  | D22: =IF(C22<P22,Q22,IF(C22<L22,ABS((C22-L22)*Q22/(P22-L22)),0)) ->  | E22: =IF(C22>M22,"Bajo",IF(C22>N22,"Medio",IF(C22>O22,"Alto","Muy Alto"))) ->  | L22: =VLOOKUP($B22,Scale!$A$2:$L$32,L$2,FALSE) -> 685 | M22: =VLOOKUP($B22,Scale!$A$2:$L$32,M$2,FALSE) -> 570 | N22: =VLOOKUP($B22,Scale!$A$2:$L$32,N$2,FALSE) -> 455 | O22: =VLOOKUP($B22,Scale!$A$2:$L$32,O$2,FALSE) -> 340 | P22: =VLOOKUP($B22,Scale!$A$2:$L$32,P$2,FALSE) -> 225 | Q22: =VLOOKUP($B22,Scale!$A$2:$L$32,Q$2,FALSE) -> 6
A23: CONSUMO DE AGUA POR M2 | B23: A2B3 | C23: =HLOOKUP(B23,'Datos y cálculos'!$A$1:$FI$2,2,FALSE) ->  | D23: =IF(C23<P23,Q23,IF(C23<L23,ABS((C23-L23)*Q23/(P23-L23)),0)) ->  | E23: =IF(C23>M23,"Bajo",IF(C23>N23,"Medio",IF(C23>O23,"Alto","Muy Alto"))) ->  | L23: =VLOOKUP($B23,Scale!$A$2:$L$32,L$2,FALSE) -> 3000 | M23: =VLOOKUP($B23,Scale!$A$2:$L$32,M$2,FALSE) -> 2650 | N23: =VLOOKUP($B23,Scale!$A$2:$L$32,N$2,FALSE) -> 2000 | O23: =VLOOKUP($B23,Scale!$A$2:$L$32,O$2,FALSE) -> 1400 | P23: =VLOOKUP($B23,Scale!$A$2:$L$32,P$2,FALSE) -> 800 | Q23: =VLOOKUP($B23,Scale!$A$2:$L$32,Q$2,FALSE) -> 2
A24: ACTUACIONES | B24: ABP | C24: =HLOOKUP(B24,'Datos y cálculos'!$A$1:$FI$2,2,FALSE) -> 0 | D24: =IF(C24<L24,0,IF(C24<P24,ABS((C24-L24)*Q24/(P24-L24)),Q24)) -> 0 | E24: =IF(C24<M24,"Bajo",IF(C24<N24,"Medio",IF(C24<O24,"Alto","Muy Alto"))) -> Bajo | L24: =VLOOKUP($B24,Scale!$A$2:$L$32,L$2,FALSE) -> 0 | M24: =VLOOKUP($B24,Scale!$A$2:$L$32,M$2,FALSE) -> 1.5 | N24: =VLOOKUP($B24,Scale!$A$2:$L$32,N$2,FALSE) -> 3 | O24: =VLOOKUP($B24,Scale!$A$2:$L$32,O$2,FALSE) -> 4.5 | P24: =VLOOKUP($B24,Scale!$A$2:$L$32,P$2,FALSE) -> 6 | Q24: =VLOOKUP($B24,Scale!$A$2:$L$32,Q$2,FALSE) -> 8
A26: ÁREA PRIORITARIA DE MATERIALES Y RESIDUOS | B26: INDICADOR | C26: VALOR INDICADOR | D26: PUNTUACIÓN ASIGNADA | E26: EVALUACIÓN
A27: RESIDUOS VALORIZADOS | B27: Rval | C27: =HLOOKUP(B27,'Datos y cálculos'!$A$1:$FI$2,2,FALSE) ->  | D27: =IF(C27<L27,0,IF(C27<P27,ABS((C27-L27)*Q27/(P27-L27)),Q27)) ->  | E27: =IF(C27<M27,"Bajo",IF(C27<N27,"Medio",IF(C27<O27,"Alto","Muy Alto"))) ->  | L27: =VLOOKUP($B27,Scale!$A$2:$L$32,L$2,FALSE) -> 0 | M27: =VLOOKUP($B27,Scale!$A$2:$L$32,M$2,FALSE) -> 25 | N27: =VLOOKUP($B27,Scale!$A$2:$L$32,N$2,FALSE) -> 50 | O27: =VLOOKUP($B27,Scale!$A$2:$L$32,O$2,FALSE) -> 75 | P27: =VLOOKUP($B27,Scale!$A$2:$L$32,P$2,FALSE) -> 100 | Q27: =VLOOKUP($B27,Scale!$A$2:$L$32,Q$2,FALSE) -> 10
A28: RESIDUOS CONSTRUCCIÓN | B28: R2B | C28: =HLOOKUP(B28,'Datos y cálculos'!$A$1:$FI$2,2,FALSE) -> 0 | D28: =IF(C28<L28,0,IF(C28<P28,ABS((C28-L28)*Q28/(P28-L28)),Q28)) -> 0 | E28: Bajo | L28: =VLOOKUP($B28,Scale!$A$2:$L$32,L$2,FALSE) -> 0 | M28: =VLOOKUP($B28,Scale!$A$2:$L$32,M$2,FALSE) -> 25 | N28: =VLOOKUP($B28,Scale!$A$2:$L$32,N$2,FALSE) -> 50 | O28: =VLOOKUP($B28,Scale!$A$2:$L$32,O$2,FALSE) -> 75 | P28: =VLOOKUP($B28,Scale!$A$2:$L$32,P$2,FALSE) -> 100 | Q28: =VLOOKUP($B28,Scale!$A$2:$L$32,Q$2,FALSE) -> 2
A29: ACTUACIONES | B29: RBP | C29: =HLOOKUP(B29,'Datos y cálculos'!$A$1:$FI$2,2,FALSE) -> 0 | D29: =IF(C29<L29,0,IF(C29<P29,ABS((C29-L29)*Q29/(P29-L29)),Q29)) -> 0 | E29: Bajo | L29: =VLOOKUP($B29,Scale!$A$2:$L$32,L$2,FALSE) -> 0 | M29: =VLOOKUP($B29,Scale!$A$2:$L$32,M$2,FALSE) -> 3 | N29: =VLOOKUP($B29,Scale!$A$2:$L$32,N$2,FALSE) -> 6 | O29: =VLOOKUP($B29,Scale!$A$2:$L$32,O$2,FALSE) -> 9 | P29: =VLOOKUP($B29,Scale!$A$2:$L$32,P$2,FALSE) -> 12 | Q29: =VLOOKUP($B29,Scale!$A$2:$L$32,Q$2,FALSE) -> 8
A31: ÁREA PRIORITARIA DE ALIMENTOS | B31: INDICADOR | C31: VALOR INDICADOR | D31: PUNTUACIÓN ASIGNADA | E31: EVALUACIÓN
A32: ALIMENTOS KM0 | B32: RA1B | C32: =HLOOKUP(B32,'Datos y cálculos'!$A$1:$FI$2,2,FALSE) -> 0 | D32: =IF(C32<L32,0,IF(C32<P32,ABS((C32-L32)*Q32/(P32-L32)),Q32)) -> 0 | E32: =IF(C32<M32,"Bajo",IF(C32<N32,"Medio",IF(C32<O32,"Alto","Muy Alto"))) -> Bajo | L32: =VLOOKUP($B32,Scale!$A$2:$L$32,L$2,FALSE) -> 0 | M32: =VLOOKUP($B32,Scale!$A$2:$L$32,M$2,FALSE) -> 12.5 | N32: =VLOOKUP($B32,Scale!$A$2:$L$32,N$2,FALSE) -> 25 | O32: =VLOOKUP($B32,Scale!$A$2:$L$32,O$2,FALSE) -> 37.5 | P32: =VLOOKUP($B32,Scale!$A$2:$L$32,P$2,FALSE) -> 50 | Q32: =VLOOKUP($B32,Scale!$A$2:$L$32,Q$2,FALSE) -> 4
A33: ALIMENTOS REDUCCIÓN DE ENVASES | B33: RA2B | C33: =HLOOKUP(B33,'Datos y cálculos'!$A$1:$FI$2,2,FALSE) -> 0 | D33: =IF(C33<L33,0,IF(C33<P33,ABS((C33-L33)*Q33/(P33-L33)),Q33)) -> 0 | E33: Bajo | L33: =VLOOKUP($B33,Scale!$A$2:$L$32,L$2,FALSE) -> 0 | M33: =VLOOKUP($B33,Scale!$A$2:$L$32,M$2,FALSE) -> 12.5 | N33: =VLOOKUP($B33,Scale!$A$2:$L$32,N$2,FALSE) -> 25 | O33: =VLOOKUP($B33,Scale!$A$2:$L$32,O$2,FALSE) -> 37.5 | P33: =VLOOKUP($B33,Scale!$A$2:$L$32,P$2,FALSE) -> 50 | Q33: =VLOOKUP($B33,Scale!$A$2:$L$32,Q$2,FALSE) -> 4
A34: ACTUACIONES | B34: RABP | C34: =HLOOKUP(B34,'Datos y cálculos'!$A$1:$FI$2,2,FALSE) -> 0 | D34: =IF(C34<L34,0,IF(C34<P34,ABS((C34-L34)*Q34/(P34-L34)),Q34)) -> 0 | E34: Bajo | L34: =VLOOKUP($B34,Scale!$A$2:$L$32,L$2,FALSE) -> 0 | M34: =VLOOKUP($B34,Scale!$A$2:$L$32,M$2,FALSE) -> 1.25 | N34: =VLOOKUP($B34,Scale!$A$2:$L$32,N$2,FALSE) -> 2.5 | O34: =VLOOKUP($B34,Scale!$A$2:$L$32,O$2,FALSE) -> 3.75 | P34: =VLOOKUP($B34,Scale!$A$2:$L$32,P$2,FALSE) -> 5 | Q34: =VLOOKUP($B34,Scale!$A$2:$L$32,Q$2,FALSE) -> 12
A36: TOTALES | C36: VALOR INDICADOR | D36: PUNTUACIÓN ASIGNADA | E36: EVALUACIÓN
A37: PLANIFICACIÓN Y EVALUACIÓN CIRCULAR | B37: Planificación y Gestión Circular | C37: =SUM(D4:D7) -> 0 | D37: =IF(C37<L37,0,IF(C37<P37,ABS((C37-L37)*Q37/(P37-L37)),Q37)) -> 0 | E37: =IF(C37<M37,"Bajo",IF(C37<N37,"Medio",IF(C37<O37,"Alto","Muy Alto"))) -> Bajo | L37: =VLOOKUP($B37,Scale!$A$2:$L$32,L$2,FALSE) -> 0 | M37: =VLOOKUP($B37,Scale!$A$2:$L$32,M$2,FALSE) -> 5 | N37: =VLOOKUP($B37,Scale!$A$2:$L$32,N$2,FALSE) -> 10 | O37: =VLOOKUP($B37,Scale!$A$2:$L$32,O$2,FALSE) -> 15 | P37: =VLOOKUP($B37,Scale!$A$2:$L$32,P$2,FALSE) -> 20 | Q37: =VLOOKUP($B37,Scale!$A$2:$L$32,Q$2,FALSE) -> 20
A38: ÁREA PRIORITARIA DE ENERGÍA | B38: Energía | C38: =SUM(D10:D17) ->  | D38: =IF(C38<L38,0,IF(C38<P38,ABS((C38-L38)*Q38/(P38-L38)),Q38)) ->  | L38: =VLOOKUP($B38,Scale!$A$2:$L$32,L$2,FALSE) -> 0 | M38: =VLOOKUP($B38,Scale!$A$2:$L$32,M$2,FALSE) -> 5 | N38: =VLOOKUP($B38,Scale!$A$2:$L$32,N$2,FALSE) -> 10 | O38: =VLOOKUP($B38,Scale!$A$2:$L$32,O$2,FALSE) -> 15 | P38: =VLOOKUP($B38,Scale!$A$2:$L$32,P$2,FALSE) -> 20 | Q38: =VLOOKUP($B38,Scale!$A$2:$L$32,Q$2,FALSE) -> 20
A39: ÁREA PRIORITARIA DE AGUA | B39: Agua | C39: =SUM(D21:D24) ->  | D39: =IF(C39<L39,0,IF(C39<P39,ABS((C39-L39)*Q39/(P39-L39)),Q39)) ->  | L39: =VLOOKUP($B39,Scale!$A$2:$L$32,L$2,FALSE) -> 0 | M39: =VLOOKUP($B39,Scale!$A$2:$L$32,M$2,FALSE) -> 5 | N39: =VLOOKUP($B39,Scale!$A$2:$L$32,N$2,FALSE) -> 10 | O39: =VLOOKUP($B39,Scale!$A$2:$L$32,O$2,FALSE) -> 15 | P39: =VLOOKUP($B39,Scale!$A$2:$L$32,P$2,FALSE) -> 20 | Q39: =VLOOKUP($B39,Scale!$A$2:$L$32,Q$2,FALSE) -> 20
A40: ÁREA PRIORITARIA DE MATERIALES Y RESIDUOS | B40: Residuos | C40: =SUM(D27:D29) ->  | D40: =IF(C40<L40,0,IF(C40<P40,ABS((C40-L40)*Q40/(P40-L40)),Q40)) ->  | L40: =VLOOKUP($B40,Scale!$A$2:$L$32,L$2,FALSE) -> 0 | M40: =VLOOKUP($B40,Scale!$A$2:$L$32,M$2,FALSE) -> 5 | N40: =VLOOKUP($B40,Scale!$A$2:$L$32,N$2,FALSE) -> 10 | O40: =VLOOKUP($B40,Scale!$A$2:$L$32,O$2,FALSE) -> 15 | P40: =VLOOKUP($B40,Scale!$A$2:$L$32,P$2,FALSE) -> 20 | Q40: =VLOOKUP($B40,Scale!$A$2:$L$32,Q$2,FALSE) -> 20
A41: ÁREA PRIORITARIA DE ALIMENTOS | B41: Desperdicio Alimentario | C41: =SUM(D32:D34) -> 0 | D41: =IF(C41<L41,0,IF(C41<P41,ABS((C41-L41)*Q41/(P41-L41)),Q41)) -> 0 | E41: Bajo | L41: =VLOOKUP($B41,Scale!$A$2:$L$32,L$2,FALSE) -> 0 | M41: =VLOOKUP($B41,Scale!$A$2:$L$32,M$2,FALSE) -> 5 | N41: =VLOOKUP($B41,Scale!$A$2:$L$32,N$2,FALSE) -> 10 | O41: =VLOOKUP($B41,Scale!$A$2:$L$32,O$2,FALSE) -> 15 | P41: =VLOOKUP($B41,Scale!$A$2:$L$32,P$2,FALSE) -> 20 | Q41: =VLOOKUP($B41,Scale!$A$2:$L$32,Q$2,FALSE) -> 20
C43: VALOR INDICADOR | D43: PUNTUACIÓN ASIGNADA | E43: EVALUACIÓN
A44: NIVEL DE CIRCULARIDAD | B44: Nivel de Circularidad | C44: =SUM(C37:C41) ->  | D44: =IF(C44<L44,0,IF(C44<P44,ABS((C44-L44)*Q44/(P44-L44)),1)) ->  | E44: =IF(C44<M44,"Bajo",IF(C44<N44,"Medio",IF(C44<O44,"Alto","Muy Alto"))) ->  | L44: =VLOOKUP($B44,Scale!$A$2:$L$32,L$2,FALSE) -> 0 | M44: =VLOOKUP($B44,Scale!$A$2:$L$32,M$2,FALSE) -> 25 | N44: =VLOOKUP($B44,Scale!$A$2:$L$32,N$2,FALSE) -> 50 | O44: =VLOOKUP($B44,Scale!$A$2:$L$32,O$2,FALSE) -> 75 | P44: =VLOOKUP($B44,Scale!$A$2:$L$32,P$2,FALSE) -> 100 | Q44: =VLOOKUP($B44,Scale!$A$2:$L$32,Q$2,FALSE) -> 100

Sheet HUELLA
B2: ALCANCE 1: EMISIONES DIRECTAS | C2: CONSUMOS DE FLOTA DE VEHICULOS DE COMBUSTIÓN, INSTALACIONES FIJAS Y FUGITIVAS
B5: EMISIONES DE LA FLOTA DE VEHÍCULOS DE COMBUSTIÓN POR CANTIDAD DE COMBUSTIBLE CONSUMIDA AL AÑO
B6: Categoría de vehículo | C6: Tipo de Combustible | D6: Cantidad comb. (ud) | E6: Factor emisión | H6: Emisiones parciales | K6: Emisiones totales kg CO2e
E7: Por defecto
E8: CO2 (kg/ud) | F8: CH4 (g/ud) | G8: N2O (g/ud) | H8: kg CO2 | I8: g CH4 | J8: g N2O
E9: =IFERROR(INDEX(DATOS!$E$4:$G$37,MATCH($C9&$B9,DATOS!$D$4:$D$37,0),MATCH(E$8,DATOS!$E$3:$G$3,0)),"-") -> - | F9: =IFERROR(INDEX(DATOS!$E$4:$G$37,MATCH($C9&$B9,DATOS!$D$4:$D$37,0),MATCH(F$8,DATOS!$E$3:$G$3,0)),"-") -> - | G9: =IFERROR(INDEX(DATOS!$E$4:$G$37,MATCH($C9&$B9,DATOS!$D$4:$D$37,0),MATCH(G$8,DATOS!$E$3:$G$3,0)),"-") -> - | H9: =IFERROR($D9*E9,"-") -> - | I9: =IFERROR($D9*F9,"-") -> - | J9: =IFERROR($D9*G9,"-") -> - | K9: =IFERROR(H9+I9*(DATOS!$J$2/1000)+J9*(DATOS!$J$3/1000),"-") -> -
E10: =IFERROR(INDEX(DATOS!$E$4:$G$37,MATCH($C10&$B10,DATOS!$D$4:$D$37,0),MATCH(E$8,DATOS!$E$3:$G$3,0)),"-") -> - | F10: =IFERROR(INDEX(DATOS!$E$4:$G$37,MATCH($C10&$B10,DATOS!$D$4:$D$37,0),MATCH(F$8,DATOS!$E$3:$G$3,0)),"-") -> - | G10: =IFERROR(INDEX(DATOS!$E$4:$G$37,MATCH($C10&$B10,DATOS!$D$4:$D$37,0),MATCH(G$8,DATOS!$E$3:$G$3,0)),"-") -> - | H10: =IFERROR($D10*E10,"-") -> - | I10: =IFERROR($D10*F10,"-") -> - | J10: =IFERROR($D10*G10,"-") -> - | K10: =IFERROR(H10+I10*(DATOS!$J$2/1000)+J10*(DATOS!$J$3/1000),"-") -> -
E11: =IFERROR(INDEX(DATOS!$E$4:$G$37,MATCH($C11&$B11,DATOS!$D$4:$D$37,0),MATCH(E$8,DATOS!$E$3:$G$3,0)),"-") -> - | F11: =IFERROR(INDEX(DATOS!$E$4:$G$37,MATCH($C11&$B11,DATOS!$D$4:$D$37,0),MATCH(F$8,DATOS!$E$3:$G$3,0)),"-") -> - | G11: =IFERROR(INDEX(DATOS!$E$4:$G$37,MATCH($C11&$B11,DATOS!$D$4:$D$37,0),MATCH(G$8,DATOS!$E$3:$G$3,0)),"-") -> - | H11: - | I11: - | J11: - | K11: =IFERROR(H11+I11*(DATOS!$J$2/1000)+J11*(DATOS!$J$3/1000),"-") -> -
E12: =IFERROR(INDEX(DATOS!$E$4:$G$37,MATCH($C12&$B12,DATOS!$D$4:$D$37,0),MATCH(E$8,DATOS!$E$3:$G$3,0)),"-") -> - | F12: =IFERROR(INDEX(DATOS!$E$4:$G$37,MATCH($C12&$B12,DATOS!$D$4:$D$37,0),MATCH(F$8,DATOS!$E$3:$G$3,0)),"-") -> - | G12: =IFERROR(INDEX(DATOS!$E$4:$G$37,MATCH($C12&$B12,DATOS!$D$4:$D$37,0),MATCH(G$8,DATOS!$E$3:$G$3,0)),"-") -> - | H12: - | I12: - | J12: - | K12: =IFERROR(H12+I12*(DATOS!$J$2/1000)+J12*(DATOS!$J$3/1000),"-") -> -
E13: =IFERROR(INDEX(DATOS!$E$4:$G$37,MATCH($C13&$B13,DATOS!$D$4:$D$37,0),MATCH(E$8,DATOS!$E$3:$G$3,0)),"-") -> - | F13: =IFERROR(INDEX(DATOS!$E$4:$G$37,MATCH($C13&$B13,DATOS!$D$4:$D$37,0),MATCH(F$8,DATOS!$E$3:$G$3,0)),"-") -> - | G13: =IFERROR(INDEX(DATOS!$E$4:$G$37,MATCH($C13&$B13,DATOS!$D$4:$D$37,0),MATCH(G$8,DATOS!$E$3:$G$3,0)),"-") -> - | H13: - | I13: - | J13: - | K13: =IFERROR(H13+I13*(DATOS!$J$2/1000)+J13*(DATOS!$J$3/1000),"-") -> -
E14: =IFERROR(INDEX(DATOS!$E$4:$G$37,MATCH($C14&$B14,DATOS!$D$4:$D$37,0),MATCH(E$8,DATOS!$E$3:$G$3,0)),"-") -> - | F14: =IFERROR(INDEX(DATOS!$E$4:$G$37,MATCH($C14&$B14,DATOS!$D$4:$D$37,0),MATCH(F$8,DATOS!$E$3:$G$3,0)),"-") -> - | G14: =IFERROR(INDEX(DATOS!$E$4:$G$37,MATCH($C14&$B14,DATOS!$D$4:$D$37,0),MATCH(G$8,DATOS!$E$3:$G$3,0)),"-") -> - | H14: - | I14: - | J14: - | K14: =IFERROR(H14+I14*(DATOS!$J$2/1000)+J14*(DATOS!$J$3/1000),"-") -> -
E15: =IFERROR(INDEX(DATOS!$E$4:$G$37,MATCH($C15&$B15,DATOS!$D$4:$D$37,0),MATCH(E$8,DATOS!$E$3:$G$3,0)),"-") -> - | F15: =IFERROR(INDEX(DATOS!$E$4:$G$37,MATCH($C15&$B15,DATOS!$D$4:$D$37,0),MATCH(F$8,DATOS!$E$3:$G$3,0)),"-") -> - | G15: =IFERROR(INDEX(DATOS!$E$4:$G$37,MATCH($C15&$B15,DATOS!$D$4:$D$37,0),MATCH(G$8,DATOS!$E$3:$G$3,0)),"-") -> - | H15: - | I15: - | J15: - | K15: =IFERROR(H15+I15*(DATOS!$J$2/1000)+J15*(DATOS!$J$3/1000),"-") -> -
G16: SUMA EMISIONES | H16: =SUM(H9:H15) -> 0 | I16: =SUM(I9:I15) -> 0 | J16: 0 | K16: 0
B19: EMISIONES DE LA FLOTA DE VEHÍCULOS DE COMBUSTIÓN POR KILOMETROS RECORRIDOS AL AÑO
B20: Categoría de vehículo | C20: Tipo de Combustible | D20: KM Recorridos | E20: Factor emisión | H20: Emisiones parciales | K20: Emisiones totales kg CO2e
E21: Por defecto
E22: CO2 (kg/ud) | F22: CH4 (g/ud) | G22: N2O (g/ud) | H22: kg CO2 | I22: g CH4 | J22: g N2O
E23: =IFERROR(INDEX(DATOS!$E$41:$G$50,MATCH(HUELLA!$C23&HUELLA!$B23,DATOS!$D$41:$D$50,0),MATCH(HUELLA!E$22,DATOS!$E$40:$G$40,0)),"-") -> - | F23: =IFERROR(INDEX(DATOS!$E$41:$G$50,MATCH(HUELLA!$C23&HUELLA!$B23,DATOS!$D$41:$D$50,0),MATCH(HUELLA!F$22,DATOS!$E$40:$G$40,0)),"-") -> - | G23: =IFERROR(INDEX(DATOS!$E$41:$G$50,MATCH(HUELLA!$C23&HUELLA!$B23,DATOS!$D$41:$D$50,0),MATCH(HUELLA!G$22,DATOS!$E$40:$G$40,0)),"-") -> - | H23: =IFERROR($D23*E23,"-") -> - | I23: =IFERROR($D23*F23,"-") -> - | J23: =IFERROR($D23*G23,"-") -> - | K23: =IFERROR(H23+I23*(DATOS!$J$2/1000)+J23*(DATOS!$J$3/1000),"-") -> -
E24: =IFERROR(INDEX(DATOS!$E$41:$G$50,MATCH(HUELLA!$C24&HUELLA!$B24,DATOS!$D$41:$D$50,0),MATCH(HUELLA!E$22,DATOS!$E$40:$G$40,0)),"-") -> - | F24: =IFERROR(INDEX(DATOS!$E$41:$G$50,MATCH(HUELLA!$C24&HUELLA!$B24,DATOS!$D$41:$D$50,0),MATCH(HUELLA!F$22,DATOS!$E$40:$G$40,0)),"-") -> - | G24: =IFERROR(INDEX(DATOS!$E$41:$G$50,MATCH(HUELLA!$C24&HUELLA!$B24,DATOS!$D$41:$D$50,0),MATCH(HUELLA!G$22,DATOS!$E$40:$G$40,0)),"-") -> - | H24: =IFERROR($D24*E24,"-") -> - | I24: =IFERROR($D24*F24,"-") -> - | J24: =IFERROR($D24*G24,"-") -> - | K24: =IFERROR(H24+I24*(DATOS!$J$2/1000)+J24*(DATOS!$J$3/1000),"-") -> -
E25: =IFERROR(INDEX(DATOS!$E$41:$G$50,MATCH(HUELLA!$C25&HUELLA!$B25,DATOS!$D$41:$D$50,0),MATCH(HUELLA!E$22,DATOS!$E$40:$G$40,0)),"-") -> - | F25: =IFERROR(INDEX(DATOS!$E$41:$G$50,MATCH(HUELLA!$C25&HUELLA!$B25,DATOS!$D$41:$D$50,0),MATCH(HUELLA!F$22,DATOS!$E$40:$G$40,0)),"-") -> - | G25: =IFERROR(INDEX(DATOS!$E$41:$G$50,MATCH(HUELLA!$C25&HUELLA!$B25,DATOS!$D$41:$D$50,0),MATCH(HUELLA!G$22,DATOS!$E$40:$G$40,0)),"-") -> - | H25: =IFERROR($D25*E25,"-") -> - | I25: - | J25: - | K25: =IFERROR(H25+I25*(DATOS!$J$2/1000)+J25*(DATOS!$J$3/1000),"-") -> -
E26: =IFERROR(INDEX(DATOS!$E$41:$G$50,MATCH(HUELLA!$C26&HUELLA!$B26,DATOS!$D$41:$D$50,0),MATCH(HUELLA!E$22,DATOS!$E$40:$G$40,0)),"-") -> - | F26: =IFERROR(INDEX(DATOS!$E$41:$G$50,MATCH(HUELLA!$C26&HUELLA!$B26,DATOS!$D$41:$D$50,0),MATCH(HUELLA!F$22,DATOS!$E$40:$G$40,0)),"-") -> - | G26: =IFERROR(INDEX(DATOS!$E$41:$G$50,MATCH(HUELLA!$C26&HUELLA!$B26,DATOS!$D$41:$D$50,0),MATCH(HUELLA!G$22,DATOS!$E$40:$G$40,0)),"-") -> - | H26: - | I26: - | J26: - | K26: =IFERROR(H26+I26*(DATOS!$J$2/1000)+J26*(DATOS!$J$3/1000),"-") -> -
E27: =IFERROR(INDEX(DATOS!$E$41:$G$50,MATCH(HUELLA!$C27&HUELLA!$B27,DATOS!$D$41:$D$50,0),MATCH(HUELLA!E$22,DATOS!$E$40:$G$40,0)),"-") -> - | F27: =IFERROR(INDEX(DATOS!$E$41:$G$50,MATCH(HUELLA!$C27&HUELLA!$B27,DATOS!$D$41:$D$50,0),MATCH(HUELLA!F$22,DATOS!$E$40:$G$40,0)),"-") -> - | G27: =IFERROR(INDEX(DATOS!$E$41:$G$50,MATCH(HUELLA!$C27&HUELLA!$B27,DATOS!$D$41:$D$50,0),MATCH(HUELLA!G$22,DATOS!$E$40:$G$40,0)),"-") -> - | H27: - | I27: - | J27: - | K27: =IFERROR(H27+I27*(DATOS!$J$2/1000)+J27*(DATOS!$J$3/1000),"-") -> -
E28: =IFERROR(INDEX(DATOS!$E$41:$G$50,MATCH(HUELLA!$C28&HUELLA!$B28,DATOS!$D$41:$D$50,0),MATCH(HUELLA!E$22,DATOS!$E$40:$G$40,0)),"-") -> - | F28: =IFERROR(INDEX(DATOS!$E$41:$G$50,MATCH(HUELLA!$C28&HUELLA!$B28,DATOS!$D$41:$D$50,0),MATCH(HUELLA!F$22,DATOS!$E$40:$G$40,0)),"-") -> - | G28: =IFERROR(INDEX(DATOS!$E$41:$G$50,MATCH(HUELLA!$C28&HUELLA!$B28,DATOS!$D$41:$D$50,0),MATCH(HUELLA!G$22,DATOS!$E$40:$G$40,0)),"-") -> - | H28: - | I28: - | J28: - | K28: =IFERROR(H28+I28*(DATOS!$J$2/1000)+J28*(DATOS!$J$3/1000),"-") -> -
E29: =IFERROR(INDEX(DATOS!$E$41:$G$50,MATCH(HUELLA!$C29&HUELLA!$B29,DATOS!$D$41:$D$50,0),MATCH(HUELLA!E$22,DATOS!$E$40:$G$40,0)),"-") -> - | F29: =IFERROR(INDEX(DATOS!$E$41:$G$50,MATCH(HUELLA!$C29&HUELLA!$B29,DATOS!$D$41:$D$50,0),MATCH(HUELLA!F$22,DATOS!$E$40:$G$40,0)),"-") -> - | G29: =IFERROR(INDEX(DATOS!$E$41:$G$50,MATCH(HUELLA!$C29&HUELLA!$B29,DATOS!$D$41:$D$50,0),MATCH(HUELLA!G$22,DATOS!$E$40:$G$40,0)),"-") -> - | H29: - | I29: - | J29: - | K29: =IFERROR(H29+I29*(DATOS!$J$2/1000)+J29*(DATOS!$J$3/1000),"-") -> -
G30: SUMA EMISIONES | H30: =SUM(H23:H29) -> 0 | I30: =SUM(I23:I29) -> 0 | J30: 0 | K30: 0
B33: EMISIONES DE INSTALACIONES FIJAS (CALDERAS, MOTORES ESTACIONARIOS, ETC.)* POR CANTIDAD DE COMBUSTIBLE CONSUMIDA AL AÑO
C34: Tipo de Combustible | D34: Cantidad comb. (ud) | E34: Factor emisión | H34: Emisiones parciales A.1 | K34: Emisiones totales A1 kg CO2e
E35: Por defecto
E36: CO2 (kg/ud) | F36: CH4 (g/ud) | G36: N2O (g/ud) | H36: kg CO2 | I36: g CH4 | J36: g N2O
B37: *NO SUJETAS A LAS OBLIGACIONES ESTABLECIDAS EN LA LEY 1/2005, DE 9 DE MARZO | E37: =IFERROR(INDEX(DATOS!$E$57:$G$77,MATCH($C37,DATOS!$D$57:$D$77,0),MATCH(E$36,DATOS!$E$56:$G$56,0)),"-") -> - | F37: =IFERROR(INDEX(DATOS!$E$57:$G$77,MATCH($C37,DATOS!$D$57:$D$77,0),MATCH(F$36,DATOS!$E$56:$G$56,0)),"-") -> - | G37: =IFERROR(INDEX(DATOS!$E$57:$G$77,MATCH($C37,DATOS!$D$57:$D$77,0),MATCH(G$36,DATOS!$E$56:$G$56,0)),"-") -> - | H37: =IFERROR($D37*E37,"-") -> - | I37: =IFERROR($D37*F37,"-") -> - | J37: =IFERROR($D37*G37,"-") -> - | K37: =IFERROR(H37+I37*(DATOS!$J$2/1000)+J37*(DATOS!$J$3/1000),"-") -> -
B38: ** Indique la cantidad de gas natural consumida en kWhPCS (Poder Calorífico Superior) | E38: =IFERROR(INDEX(DATOS!$E$57:$G$77,MATCH($C38,DATOS!$D$57:$D$77,0),MATCH(E$36,DATOS!$E$56:$G$56,0)),"-") -> - | F38: =IFERROR(INDEX(DATOS!$E$57:$G$77,MATCH($C38,DATOS!$D$57:$D$77,0),MATCH(F$36,DATOS!$E$56:$G$56,0)),"-") -> - | G38: =IFERROR(INDEX(DATOS!$E$57:$G$77,MATCH($C38,DATOS!$D$57:$D$77,0),MATCH(G$36,DATOS!$E$56:$G$56,0)),"-") -> - | H38: =IFERROR($D38*E38,"-") -> - | I38: - | J38: - | K38: =IFERROR(H38+I38*(DATOS!$J$2/1000)+J38*(DATOS!$J$3/1000),"-") -> -
B39: ya que el factor de emisión del gas natural está expresado en kgCO2/kWhPCS. | E39: =IFERROR(INDEX(DATOS!$E$57:$G$77,MATCH($C39,DATOS!$D$57:$D$77,0),MATCH(E$36,DATOS!$E$56:$G$56,0)),"-") -> - | F39: =IFERROR(INDEX(DATOS!$E$57:$G$77,MATCH($C39,DATOS!$D$57:$D$77,0),MATCH(F$36,DATOS!$E$56:$G$56,0)),"-") -> - | G39: =IFERROR(INDEX(DATOS!$E$57:$G$77,MATCH($C39,DATOS!$D$57:$D$77,0),MATCH(G$36,DATOS!$E$56:$G$56,0)),"-") -> - | H39: - | I39: - | J39: - | K39: =IFERROR(H39+I39*(DATOS!$J$2/1000)+J39*(DATOS!$J$3/1000),"-") -> -
B40: *** La utilización de la biomasa (madera, pellets, biogás, etc.) como combustible se considera | E40: =IFERROR(INDEX(DATOS!$E$57:$G$77,MATCH($C40,DATOS!$D$57:$D$77,0),MATCH(E$36,DATOS!$E$56:$G$56,0)),"-") -> - | F40: =IFERROR(INDEX(DATOS!$E$57:$G$77,MATCH($C40,DATOS!$D$57:$D$77,0),MATCH(F$36,DATOS!$E$56:$G$56,0)),"-") -> - | G40: =IFERROR(INDEX(DATOS!$E$57:$G$77,MATCH($C40,DATOS!$D$57:$D$77,0),MATCH(G$36,DATOS!$E$56:$G$56,0)),"-") -> - | H40: - | I40: - | J40: - | K40: =IFERROR(H40+I40*(DATOS!$J$2/1000)+J40*(DATOS!$J$3/1000),"-") -> -
B41: neutra en emisiones de CO2 al ser de origen biogénico, pero sí producirá emisiones de CH4 y N2O. | E41: =IFERROR(INDEX(DATOS!$E$57:$G$77,MATCH($C41,DATOS!$D$57:$D$77,0),MATCH(E$36,DATOS!$E$56:$G$56,0)),"-") -> - | F41: =IFERROR(INDEX(DATOS!$E$57:$G$77,MATCH($C41,DATOS!$D$57:$D$77,0),MATCH(F$36,DATOS!$E$56:$G$56,0)),"-") -> - | G41: =IFERROR(INDEX(DATOS!$E$57:$G$77,MATCH($C41,DATOS!$D$57:$D$77,0),MATCH(G$36,DATOS!$E$56:$G$56,0)),"-") -> - | H41: - | I41: - | J41: - | K41: =IFERROR(H41+I41*(DATOS!$J$2/1000)+J41*(DATOS!$J$3/1000),"-") -> -
E42: =IFERROR(INDEX(DATOS!$E$57:$G$77,MATCH($C42,DATOS!$D$57:$D$77,0),MATCH(E$36,DATOS!$E$56:$G$56,0)),"-") -> - | F42: =IFERROR(INDEX(DATOS!$E$57:$G$77,MATCH($C42,DATOS!$D$57:$D$77,0),MATCH(F$36,DATOS!$E$56:$G$56,0)),"-") -> - | G42: =IFERROR(INDEX(DATOS!$E$57:$G$77,MATCH($C42,DATOS!$D$57:$D$77,0),MATCH(G$36,DATOS!$E$56:$G$56,0)),"-") -> - | H42: - | I42: - | J42: - | K42: =IFERROR(H42+I42*(DATOS!$J$2/1000)+J42*(DATOS!$J$3/1000),"-") -> -
E43: =IFERROR(INDEX(DATOS!$E$57:$G$77,MATCH($C43,DATOS!$D$57:$D$77,0),MATCH(E$36,DATOS!$E$56:$G$56,0)),"-") -> - | F43: =IFERROR(INDEX(DATOS!$E$57:$G$77,MATCH($C43,DATOS!$D$57:$D$77,0),MATCH(F$36,DATOS!$E$56:$G$56,0)),"-") -> - | G43: =IFERROR(INDEX(DATOS!$E$57:$G$77,MATCH($C43,DATOS!$D$57:$D$77,0),MATCH(G$36,DATOS!$E$56:$G$56,0)),"-") -> - | H43: - | I43: - | J43: - | K43: =IFERROR(H43+I43*(DATOS!$J$2/1000)+J43*(DATOS!$J$3/1000),"-") -> -
G44: SUMA EMISIONES | H44: =SUM(H37:H43) -> 0 | I44: =SUM(I37:I43) -> 0 | J44: 0 | K44: 0
B52: EMISIONES FUGITIVAS DE EQUIPOS DE CLIMATIZACIÓN/REFRIGERACIÓN* POR KG AL AÑO
B53: Nombre del gas o de la mezcla | C53: Fórmula química | D53: PCA | E53: Otras mezclas | G53: Tipo de equipo | H53: Capacidad equipo (kg) | I53: Recarga equipo (kg) | J53: Emisiones kg CO2e
E54: Nombre | F54: PCA
C55: =IFERROR(VLOOKUP(B55,DATOS!$C$84:$E$127,2,0),"-") -> - | D55: =IFERROR(VLOOKUP(B55,DATOS!$C$84:$E$127,3,0),"-") -> - | J55: =IFERROR(IF(B55=DATOS!$C$127,HUELLA!F55*HUELLA!I55,HUELLA!D55*HUELLA!I55),"-") -> -
C56: =IFERROR(VLOOKUP(B56,DATOS!$C$84:$E$127,2,0),"-") -> - | D56: =IFERROR(VLOOKUP(B56,DATOS!$C$84:$E$127,3,0),"-") -> - | J56: =IFERROR(IF(B56=DATOS!$C$127,HUELLA!F56*HUELLA!I56,HUELLA!D56*HUELLA!I56),"-") -> -
C57: =IFERROR(VLOOKUP(B57,DATOS!$C$84:$E$127,2,0),"-") -> - | D57: =IFERROR(VLOOKUP(B57,DATOS!$C$84:$E$127,3,0),"-") -> - | J57: =IFERROR(IF(B57=DATOS!$C$127,HUELLA!F57*HUELLA!I57,HUELLA!D57*HUELLA!I57),"-") -> -
C58: =IFERROR(VLOOKUP(B58,DATOS!$C$84:$E$127,2,0),"-") -> - | D58: =IFERROR(VLOOKUP(B58,DATOS!$C$84:$E$127,3,0),"-") -> - | J58: =IFERROR(IF(B58=DATOS!$C$127,HUELLA!F58*HUELLA!I58,HUELLA!D58*HUELLA!I58),"-") -> -
C59: =IFERROR(VLOOKUP(B59,DATOS!$C$84:$E$127,2,0),"-") -> - | D59: =IFERROR(VLOOKUP(B59,DATOS!$C$84:$E$127,3,0),"-") -> - | J59: =IFERROR(IF(B59=DATOS!$C$127,HUELLA!F59*HUELLA!I59,HUELLA!D59*HUELLA!I59),"-") -> -
C60: =IFERROR(VLOOKUP(B60,DATOS!$C$84:$E$127,2,0),"-") -> - | D60: =IFERROR(VLOOKUP(B60,DATOS!$C$84:$E$127,3,0),"-") -> - | J60: =IFERROR(IF(B60=DATOS!$C$127,HUELLA!F60*HUELLA!I60,HUELLA!D60*HUELLA!I60),"-") -> -
C61: =IFERROR(VLOOKUP(B61,DATOS!$C$84:$E$127,2,0),"-") -> - | D61: =IFERROR(VLOOKUP(B61,DATOS!$C$84:$E$127,3,0),"-") -> - | J61: =IFERROR(IF(B61=DATOS!$C$127,HUELLA!F61*HUELLA!I61,HUELLA!D61*HUELLA!I61),"-") -> -
C62: =IFERROR(VLOOKUP(B62,DATOS!$C$84:$E$127,2,0),"-") -> - | D62: =IFERROR(VLOOKUP(B62,DATOS!$C$84:$E$127,3,0),"-") -> - | J62: =IFERROR(IF(B62=DATOS!$C$127,HUELLA!F62*HUELLA!I62,HUELLA!D62*HUELLA!I62),"-") -> -
C63: =IFERROR(VLOOKUP(B63,DATOS!$C$84:$E$127,2,0),"-") -> - | D63: =IFERROR(VLOOKUP(B63,DATOS!$C$84:$E$127,3,0),"-") -> - | J63: =IFERROR(IF(B63=DATOS!$C$127,HUELLA!F63*HUELLA!I63,HUELLA!D63*HUELLA!I63),"-") -> -
I64: SUMA EMISIONES | J64: =SUM(J55:J63) -> 0
B65: *No se tienen en cuenta otras emisiones fugitivas menores procedentes de equipos eléctricos, extintores, equipos de anestesia, etc., por la poca significatividad para la herramienta.
B68: ALCANCE 2: EMISIONES INDIRECTAS | C68: CONSUMO DE ELECTRICIDAD EN EDIFICIOS Y VEHÍCULOS ELÉCTRICOS
B71: EMISIONES DEL CONSUMO DE ELECTRICIDAD EN EDIFICIOS POR kWh CONSUMIDO AL AÑO
B72: Nombre de la comercializadora suministradora de energía | C72: ¿Dispone GdO*? | D72: Dato de consumo kWh | E72: Factor Mix eléc.(3) kg CO2/kWh | F72: Emisiones kg CO2e
E74: =IFERROR(_xlfn.IFS(C74=DATOS!$J$141,VLOOKUP(HUELLA!B74,DATOS!$D$139:'DATOS'!$E$328,2,0),C74=DATOS!$J$140,DATOS!$K$140,C74=DATOS!$J$139,DATOS!$K$139),"-") -> - | F74: =IFERROR(+D74*E74,"-") -> -
E75: =IFERROR(_xlfn.IFS(C75=DATOS!$J$141,VLOOKUP(HUELLA!B75,DATOS!$D$139:'DATOS'!$E$328,2,0),C75=DATOS!$J$140,DATOS!$K$140,C75=DATOS!$J$139,DATOS!$K$139),"-") -> - | F75: =IFERROR(+D75*E75,"-") -> -
E76: =IFERROR(_xlfn.IFS(C76=DATOS!$J$141,VLOOKUP(HUELLA!B76,DATOS!$D$139:'DATOS'!$E$328,2,0),C76=DATOS!$J$140,DATOS!$K$140,C76=DATOS!$J$139,DATOS!$K$139),"-") -> - | F76: -
E77: =IFERROR(_xlfn.IFS(C77=DATOS!$J$141,VLOOKUP(HUELLA!B77,DATOS!$D$139:'DATOS'!$E$328,2,0),C77=DATOS!$J$140,DATOS!$K$140,C77=DATOS!$J$139,DATOS!$K$139),"-") -> - | F77: -
E78: SUMA EMISIONES | F78: =+SUM(F74:F77) -> 0
B79: *Garantía de Origen
B81: EMISIONES DEL CONSUMO DE ELECTRICIDAD DE FLOTA DE VEHÍCULOS ELÉCTRICOS POR kWh CONSUMIDO AL AÑO
B82: Nombre de la comercializadora suministradora de energía | C82: ¿Dispone GdO*? | D82: Dato de consumo kWh | E82: Factor Mix eléc. kg CO2/kWh | F82: Emisiones kg CO2e
E84: =IFERROR(_xlfn.IFS(C84=DATOS!$J$141,VLOOKUP(HUELLA!B84,DATOS!$D$139:'DATOS'!$E$328,2,0),C84=DATOS!$J$140,DATOS!$K$140,C84=DATOS!$J$139,DATOS!$K$139),"-") -> - | F84: =IFERROR(+D84*E84,"-") -> -
E85: =IFERROR(_xlfn.IFS(C85=DATOS!$J$141,VLOOKUP(HUELLA!B85,DATOS!$D$139:'DATOS'!$E$328,2,0),C85=DATOS!$J$140,DATOS!$K$140,C85=DATOS!$J$139,DATOS!$K$139),"-") -> - | F85: =IFERROR(+D85*E85,"-") -> -
E86: =IFERROR(_xlfn.IFS(C86=DATOS!$J$141,VLOOKUP(HUELLA!B86,DATOS!$D$139:'DATOS'!$E$328,2,0),C86=DATOS!$J$140,DATOS!$K$140,C86=DATOS!$J$139,DATOS!$K$139),"-") -> - | F86: -
E87: =IFERROR(_xlfn.IFS(C87=DATOS!$J$141,VLOOKUP(HUELLA!B87,DATOS!$D$139:'DATOS'!$E$328,2,0),C87=DATOS!$J$140,DATOS!$K$140,C87=DATOS!$J$139,DATOS!$K$139),"-") -> - | F87: -
E88: =IFERROR(_xlfn.IFS(C88=DATOS!$J$141,VLOOKUP(HUELLA!B88,DATOS!$D$139:'DATOS'!$E$328,2,0),C88=DATOS!$J$140,DATOS!$K$140,C88=DATOS!$J$139,DATOS!$K$139),"-") -> - | F88: -
E89: =IFERROR(_xlfn.IFS(C89=DATOS!$J$141,VLOOKUP(HUELLA!B89,DATOS!$D$139:'DATOS'!$E$328,2,0),C89=DATOS!$J$140,DATOS!$K$140,C89=DATOS!$J$139,DATOS!$K$139),"-") -> - | F89: -
E90: =IFERROR(_xlfn.IFS(C90=DATOS!$J$141,VLOOKUP(HUELLA!B90,DATOS!$D$139:'DATOS'!$E$328,2,0),C90=DATOS!$J$140,DATOS!$K$140,C90=DATOS!$J$139,DATOS!$K$139),"-") -> - | F90: -
E91: SUMA EMISIONES | F91: =+SUM(F84:F90) -> 0
B92: *Garantía de Origen
B96: RESULTADO | C96: t CO2e
B97: EMISIONES DIRECTAS | C97: =+(SUM(K16,K30,K44,J64)/1000) -> 0
B98: EMISIONES INDIRECTAS | C98: =+SUM(F78,F91)/1000 -> 0
B99: TOTAL HUELLA DE CARBONO | C99: =SUM(C97:C98) -> 0

Sheet DATOS (hidden)
B1: ALCANCE 1 | C1: CONSUMOS DE FLOTA DE VEHICULOS DE COMBUSTIÓN E INSTALACIONES FIJAS | I1: GWP 5th AR
B2: FACTORES DE EMISIÓN VEHICULOS FLOTA (POR ud) | E2: 2022 | F2: 2022 | G2: 2022 | I2: CH4 | J2: 28
B3: TIPO CONBUSTIBLE | C3: TIPO DE VEHÍCULO | D3: CONCAT | E3: CO2 (kg/ud) | F3: CH4 (g/ud) | G3: N2O (g/ud) | I3: N2O | J3: 265
A4: GASOLINA | B4: E5 (l) | C4: Turismos (M1) | D4: =B4&C4 -> E5 (l)Turismos (M1) | E4: 2.236 | F4: 0.245 | G4: 0.026
B5: E5 (l) | C5: Furgonetas y furgones (N1) | D5: E5 (l)Furgonetas y furgones (N1) | E5: 2.234 | F5: 0.598 | G5: 0.055 | I5: LISTA TIPO COMBUSTIBLE | J5: =10732.8+(1176*(J2/1000))+(124.8*(J3/1000)) -> 10798.8
B6: E5 (l) | C6: Camiones y autobuses (N2, N3, M2, M3) | D6: E5 (l)Camiones y autobuses (N2, N3, M2, M3) | E6: 2.234 | F6: 0.488 | G6: 0.021 | I6: B10 (l)
B7: E5 (l) | C7: Ciclomotores y motocicletas (L) | D7: E5 (l)Ciclomotores y motocicletas (L) | E7: 2.27 | F7: 2.163 | G7: 0.045 | I7: B100 (l)
B8: E10 (l) | C8: Turismos (M1) | D8: E10 (l)Turismos (M1) | E8: 2.119 | F8: 0.245 | G8: 0.026 | I8: B20 (l)
B9: E10 (l) | C9: Furgonetas y furgones (N1) | D9: E10 (l)Furgonetas y furgones (N1) | E9: 2.117 | F9: 0.598 | G9: 0.055 | I9: B7 (l)
B10: E10 (l) | C10: Camiones y autobuses (N2, N3, M2, M3) | D10: E10 (l)Camiones y autobuses (N2, N3, M2, M3) | E10: 2.117 | F10: 0.488 | G10: 0.021 | I10: CNG (kg)
B11: E10 (l) | C11: Ciclomotores y motocicletas (L) | D11: E10 (l)Ciclomotores y motocicletas (L) | E11: 2.152 | F11: 2.163 | G11: 0.045 | I11: E10 (l)
B12: E85 (l) | C12: Turismos (M1) | D12: E85 (l)Turismos (M1) | E12: 0.359 | F12: 0.245 | G12: 0.026 | I12: E100 (l)
B13: E85 (l) | C13: Furgonetas y furgones (N1) | D13: E85 (l)Furgonetas y furgones (N1) | E13: 0.357 | F13: 0.598 | G13: 0.055 | I13: E5 (l)
B14: E85 (l) | C14: Camiones y autobuses (N2, N3, M2, M3) | D14: E85 (l)Camiones y autobuses (N2, N3, M2, M3) | E14: 0.357 | F14: 0.488 | G14: 0.021 | I14: E85 (l)
B15: E85 (l) | C15: Ciclomotores y motocicletas (L) | D15: E85 (l)Ciclomotores y motocicletas (L) | E15: 0.392 | F15: 2.163 | G15: 0.045 | I15: LPG (l)
B16: E100 (l) | C16: Turismos (M1) | D16: E100 (l)Turismos (M1) | E16: 0.007 | F16: 0.245 | G16: 0.026 | I16: B30 (l)
B17: E100 (l) | C17: Furgonetas y furgones (N1) | D17: E100 (l)Furgonetas y furgones (N1) | E17: 0.005 | F17: 0.598 | G17: 0.055
B18: E100 (l) | C18: Camiones y autobuses (N2, N3, M2, M3) | D18: E100 (l)Camiones y autobuses (N2, N3, M2, M3) | E18: 0.005 | F18: 0.488 | G18: 0.021
B19: E100 (l) | C19: Ciclomotores y motocicletas (L) | D19: E100 (l)Ciclomotores y motocicletas (L) | E19: 0.04 | F19: 2.163 | G19: 0.045
A20: DIESEL | B20: B7 (l) | C20: Turismos (M1) | D20: B7 (l)Turismos (M1) | E20: 2.488 | F20: 0.006 | G20: 0.118
B21: B7 (l) | C21: Furgonetas y furgones (N1) | D21: B7 (l)Furgonetas y furgones (N1) | E21: 2.486 | F21: 0.008 | G21: 0.072
B22: B7 (l) | C22: Camiones y autobuses (N2, N3, M2, M3) | D22: B7 (l)Camiones y autobuses (N2, N3, M2, M3) | E22: 2.483 | F22: 0.053 | G22: 0.13
B23: B10 (l) | C23: Turismos (M1) | D23: B10 (l)Turismos (M1) | E23: 2.412 | F23: 0.006 | G23: 0.118
B24: B10 (l) | C24: Furgonetas y furgones (N1) | D24: B10 (l)Furgonetas y furgones (N1) | E24: 2.41 | F24: 0.008 | G24: 0.072
B25: B10 (l) | C25: Camiones y autobuses (N2, N3, M2, M3) | D25: B10 (l)Camiones y autobuses (N2, N3, M2, M3) | E25: 2.407 | F25: 0.053 | G25: 0.13
B26: B20 (l) | C26: Turismos (M1) | D26: B20 (l)Turismos (M1) | E26: 2.16 | F26: 0.006 | G26: 0.118
B27: B20 (l) | C27: Furgonetas y furgones (N1) | D27: B20 (l)Furgonetas y furgones (N1) | E27: 2.158 | F27: 0.008 | G27: 0.072
B28: B20 (l) | C28: Camiones y autobuses (N2, N3, M2, M3) | D28: B20 (l)Camiones y autobuses (N2, N3, M2, M3) | E28: 2.155 | F28: 0.053 | G28: 0.13
B29: B30 (l) | C29: Turismos (M1) | D29: B30 (l)Turismos (M1) | E29: 1.908 | F29: 0.006 | G29: 0.118
B30: B30 (l) | C30: Furgonetas y furgones (N1) | D30: B30 (l)Furgonetas y furgones (N1) | E30: 1.906 | F30: 0.008 | G30: 0.072
B31: B30 (l) | C31: Camiones y autobuses (N2, N3, M2, M3) | D31: B30 (l)Camiones y autobuses (N2, N3, M2, M3) | E31: 1.903 | F31: 0.053 | G31: 0.13
B32: B100 (l) | C32: Turismos (M1) | D32: B100 (l)Turismos (M1) | E32: 0.144 | F32: 0.006 | G32: 0.118
B33: B100 (l) | C33: Furgonetas y furgones (N1) | D33: B100 (l)Furgonetas y furgones (N1) | E33: 0.142 | F33: 0.008 | G33: 0.072
B34: B100 (l) | C34: Camiones y autobuses (N2, N3, M2, M3) | D34: B100 (l)Camiones y autobuses (N2, N3, M2, M3) | E34: 0.139 | F34: 0.053 | G34: 0.13
B35: LPG (l) | C35: Turismos (M1) | D35: LPG (l)Turismos (M1) | E35: 1.652 | F35: 0.205 | G35: 0.016
B36: CNG (kg) | C36: Turismos (M1) | D36: CNG (kg)Turismos (M1) | E36: 2.716 | F36: 1.079 | G36: 0.033
B37: CNG (kg) | C37: Camiones y autobuses (N2, N3, M2, M3) | D37: CNG (kg)Camiones y autobuses (N2, N3, M2, M3) | E37: 2.716 | F37: 2.395 | G37: 0
B39: FACTORES DE EMISIÓN VEHICULOS FLOTA (POR KM) | E39: 2022 | F39: 2022 | G39: 2022
B40: TIPO CONBUSTIBLE | C40: TIPO DE VEHÍCULO | D40: CONCAT | E40: CO2 (kg/ud) | F40: CH4 (g/ud) | G40: N2O (g/ud) | I40: LISTA TIPO COMBUSTIBLE | J40: LISTA TIPO DE VEHÍCULO
B41: Gasóleo (km) | C41: Turismos (M1) | D41: Gasóleo (km)Turismos (M1) | E41: 0.163 | F41: 0 | G41: 0.007 | I41: Gasóleo (km) | J41: Turismos (M1)
B42: Gasolina (km) | C42: Turismos (M1) | D42: Gasolina (km)Turismos (M1) | E42: 0.195 | F42: 0.02 | G42: 0.002 | I42: Gasolina (km) | J42: Furgonetas y furgones (N1)
B43: LPG (km) | C43: Turismos (M1) | D43: LPG (km)Turismos (M1) | E43: 0.185 | F43: 0.023 | G43: 0.002 | I43: LPG (km) | J43: Camiones y autobuses (N2, N3, M2, M3)
B44: CNG (km) | C44: Turismos (M1) | D44: CNG (km)Turismos (M1) | E44: 0.196 | F44: 0.078 | G44: 0.002 | I44: CNG (km) | J44: Ciclomotores y motocicletas (L)
B45: Gasóleo (km) | C45: Furgonetas y furgones (N1) | D45: Gasóleo (km)Furgonetas y furgones (N1) | E45: 0.256 | F45: 0.001 | G45: 0.007
B46: Gasolina (km) | C46: Furgonetas y furgones (N1) | D46: Gasolina (km)Furgonetas y furgones (N1) | E46: 0.259 | F46: 0.066 | G46: 0.006
B47: Gasóleo (km) | C47: Camiones y autobuses (N2, N3, M2, M3) | D47: Gasóleo (km)Camiones y autobuses (N2, N3, M2, M3) | E47: 0.586 | F47: 0.012 | G47: 0.029
B48: Gasolina (km) | C48: Camiones y autobuses (N2, N3, M2, M3) | D48: Gasolina (km)Camiones y autobuses (N2, N3, M2, M3) | E48: 0.673 | F48: 0.14 | G48: 0.006
B49: CNG (km) | C49: Camiones y autobuses (N2, N3, M2, M3) | D49: CNG (km)Camiones y autobuses (N2, N3, M2, M3) | E49: 1.117 | F49: 0.987 | G49: 0
B50: Gasolina (km) | C50: Ciclomotores y motocicletas (L) | D50: Gasolina (km)Ciclomotores y motocicletas (L) | E50: 0.1 | F50: 0.092 | G50: 0.002
C54: FACTORES DE EMISIÓN INSTALACIONES FIJAS (CALDERAS, MOTORES ESTACIONARIOS, ETC.) NO SUJETAS A LAS OBLIGACIONES ESTABLECIDAS EN LA LEY 1/2005, DE 9 DE MARZO (POR ud)
E55: 2022 | F55: 2022 | G55: 2022 | J55: 61640 | K55: 4880 | L55: 80
D56: TIPO CONBUSTIBLE | E56: CO2 (kg/ud) | F56: CH4 (g/ud) | G56: N2O (g/ud) | J56: =J55+(K55*(J2/1000))+L55*(J3/1000) -> 61797.84
D57: Gasóleo C (l) | E57: 2.705 | F57: 0.365 | G57: 0.022
D58: Gasóleo B (l) | E58: 2.705 | F58: 0.365 | G58: 0.022
D59: Gas natural (kWhPCS)** | E59: 0.182 | F59: 0.016 | G59: 0
D60: Fuelóleo (l) | E60: 3.11 | F60: 0.402 | G60: 0.012
D61: LPG (l) | E61: 1.541 | F61: 0.122 | G61: 0.002
D62: Queroseno (l) | E62: 2.485 | F62: 0.346 | G62: 0.021
D63: Gas propano (kg) | E63: 2.966 | F63: 0 | G63: 0
D64: Gas butano (kg) | E64: 2.996 | F64: 0 | G64: 0
D65: Gas manufacturado (kg) | E65: 0.878 | F65: 0.099 | G65: 0.002
D66: Biogás (kg)*** | E66: 0 | F66: 0.025 | G66: 0.003
D67: Biomasa madera (kg)*** | E67: 0 | F67: 4.332 | G67: 0.058
D68: Biomasa pellets (kg)*** | E68: 0 | F68: 5.424 | G68: 0.072
D69: Biomasa astillas (kg)*** | E69: 0 | F69: 4.533 | G69: 0.06
D70: Biomasa serrines virutas (kg)*** | E70: 0 | F70: 4.749 | G70: 0.063
D71: Biomasa cáscara f. secos (kg)*** | E71: 0 | F71: 4.665 | G71: 0.062
D72: Biomasa hueso aceituna (kg)*** | E72: 0 | F72: 4.848 | G72: 0.065
D73: Carbón vegetal (kg)*** | E73: 0 | F73: 6.278 | G73: 0.031
D74: Coque de petróleo (kg) | E74: 3.169 | F74: 0.325 | G74: 0.02
D75: Coque de carbón (kg) | E75: 3.017 | F75: 0.282 | G75: 0.042
D76: Hulla y antracita (kg) | E76: 3.117 | F76: 0.303 | G76: 0.046
D77: Hullas subituminosas (kg) | E77: 1.331 | F77: 0.134 | G77: 0.02
B78: ** Indique la cantidad de gas natural consumida en kWhPCS (Poder Calorífico Superior) ya que el factor de emisión del gas natural está expresado en kgCO2/kWhPCS.
B79: *** La utilización de la biomasa (madera, pellets, biogás, etc.) como combustible se considera neutra en emisiones de CO2 al ser de origen biogénico, pero sí producirá emisiones de CH4 y N2O.
C82: FACTORES DE EMISIONES FUGITIVAS EN EQUIPOS DE CLIMATIZACIÓN/REFRIGERACIÓN (POR KG)
C83: Nombre | D83: Fórmula química | E83: PCA 5th | G83: GWP 5th AR
C84: HFC-23 | D84: CH2F3 | E84: 12400 | G84: CH4 | H84: 28
C85: HFC-32 | D85: CH2F2 | E85: 677 | G85: N2O | H85: 265
C86: HFC-41 | D86: CH3F | E86: 116
C87: HFC-125 | D87: C2HF5 | E87: 3170 | G87: Gas | H87: PCA AR4 | I87: PCAs AR5 | J87: PCAs AR5
C88: HFC-134 | D88: C2H2F4 | E88: 1120 | G88: R-600 (butano) | H88: 4
C89: HFC-134a | D89: CH2FCF3 | E89: 1300
C90: HFC-143 | D90: C2H3F3. | E90: 328 | G90: Tipo de equipo
C91: HFC-143a | D91: C2H3F3 | E91: 4800 | G91: Equipo autónomo de refrigeración
C92: HFC-152 | D92: CH2FCH2F | E92: 16 | G92: Aire acondicionado
C93: HFC-152a | D93: C2H4F2 | E93: 138 | G93: Congelador
C94: HFC-161 | D94: C2H2F | E94: 4 | G94: Nevera
C95: HFC-227ea | D95: C3HF7 | E95: 3350 | G95: Otro
C96: HFC-236cb | D96: CH2FCF2CF3 | E96: 1210
C97: HFC-236ea | D97: CHF2CHFCF3 | E97: 1330
C98: HFC-236fa | D98: C3H2F6 | E98: 8060
C99: HFC-245ca | D99: C3H3F5 | E99: 716
C100: HFC-245fa | D100: C3H3F5 | E100: 858
C101: HFC-365mfc | D101: C4H5F5 | E101: 804
C102: HFC-43-10mee | D102: C5H2F10 | E102: 1650
C103: R-404A | D103: R-125/143a/134a (44/52/4) | E103: 3942.8
C104: R-407A | D104: R-32/125/134a (20/40/40) | E104: 1923.4
C105: R-407B | D105: R-32/125/134a (10/70/20) | E105: 2546.7
C106: R-407C | D106: R-32/125/134a (23/25/52) | E106: 1624.21
C107: R-407F | D107: R-32/125/134a (30/30/40) | E107: 1674.1
C108: R-410A | D108: R-32/125 (50/50) | E108: 1923.5
C109: R-410B | D109: R-32/125 (45/55) | E109: 2048.15
C110: R-413A | D110: R-218/134a/600a (9/88/3) | E110: 1945
C111: R-417A | D111: R-125/134a/600 (46,6/50/3,4) | E111: 2127.22
C112: R-417B | D112: R-125/134a/600 (79/18,25/2,75) | E112: 2741.55
C113: R-422A | D113: R-125/134a/600a (85,1/11,5/3,4) | E113: 2847.17
C114: R-422D | D114: R-125/134a/600a (65,1/31,5/3,4) | E114: 2473.17
C115: R-424A | D115: R-125/134a/600a/600/601a (50,5/47/0,9/1/0) | E115: 2211.85
C116: R-426A | D116: R-134a/125/600/601a (93/5,1/1,3/0,6) | E116: 1370.67
C117: R-427A | D117: R-32/125/143a/134a (15/25/10/50) | E117: 2024.05
C118: R-428A | D118: R-125/143a/600a/290 (77,5/20/1,9/06) | E118: 3416.75
C119: R-434A | D119: R-125/143a/134a/600a (63,2/18/16/2,8) | E119: 3075.44
C120: R-437A | D120: R-125/134a/600/601 (19,5/78,5/1,4/06) | E120: 1638.65
C121: R-438A | D121: R-32/125/134a/600/601a (8,5/45/44,2/1,7/0,6) | E121: 2058.645
C122: R-442A | D122: R-32/125/134a/152a/227ea (31/31/30/3/5) | E122: 1754.21
C123: R-449A | D123: R-32/R-125/HFO-1234yf/R-134a (24,3/24,7/25,3/25,7) | E123: 1281.601
C124: R-452A | D124: R-125/R-32/HFO-1234yf (59/11/30) | E124: 1945
C125: R-453A | D125: R-134a/125/32/227ea/600/601a (53,8/20/20/5/0,6/0,6) | E125: 1636
C126: R-507A | D126: R-125/143a (50/50) | E126: 3985
C127: Otro | D127: - | E127: -
B135: ALCANCE 2 | C135: ELECTRICIDAD Y OTRAS ENERGÍAS
D136: PARA EDIFICIOS Y VEHÍCULOS ELECTRICOS | J136: FE Mix GdO para todos los años | K136: *GDO: GARANTÍA DE ORÍGEN
D138: Comercializadoras2022 | E138: FACTOR EMISION 2022 | K138: FACTOR EMISION 2022
D139: AB ENERGÍA 1903, S.L. | E139: 0.273 | J139: GdO energía renovable | K139: 0
D140: ACCIONA GREEN ENERGY DEVELOPMENTS SL | E140: 0 | J140: GdO cogeneración de alta eficiencia | K140: 0.302 | L140: SE APLICA ESTE DIRECTAMENTE INDEPENDIENTEMENTE DE LA COMERCIALIZADORA
D141: ACSOL ENERGÍA GLOBAL, S.A. | E141: 0.272 | J141: No | K141: - | L141: DEPENDE DE LA COMERCIALIZADORA
D142: ADEINNOVA ENERGIA S.L | E142: 0.273
D143: ADELFAS ENERGIA SL | E143: 0
D144: ADS ENERGY 8.0 SL | E144: 0.001
D145: AED ENERGIA ELECTRICA, S.L. | E145: 0
D146: AGRI-ENERGIA, S.A. | E146: 0.215
D147: AHORRELUZ SERVICIOS ONLINE S.L | E147: 0.252
D148: ALCANZIA ENERGIA, S.L. | E148: 0.272
D149: ALPIQ ENERGIA ESPAÑA SAU | E149: 0.272
D150: ALUMBRA CORPORACIÓN, S.L. | E150: 0
D151: AMPERIOS ENERGY TRADE, S.L. | E151: 0
D152: ARACAN ENERGIA S.L. | E152: 0.269
D153: ARSUS ENERGIA, S.L | E153: 0.273
D154: ASTRALCAD ENERGIA, S.L. | E154: 0
D155: ATLAS ENERGIA COMERCIAL, S.L. | E155: 0.272
D156: AUDAX RENOVABLES, S.A | E156: 0
D157: AVANZALIA ENERGIA COMERCIALIZADORA SA | E157: 0.204
D158: AXPO IBERIA S.L. | E158: 0.264
D159: BARTER SHARING, S.L. | E159: 0.036
D160: BASSOLS ENERGIA COMERCIAL, S.L | E160: 0
D161: BIROU GAS S.L. | E161: 0.27
D162: BLUBAT PULSAR, S.L. | E162: 0.193
D163: BON PREU, SAU | E163: 0
D164: BP GAS & POWER IBERIA, S.A.U. | E164: 0
D165: CAPITAL ENERGY COMERCIALIZADORA, S.L.U | E165: 0
D166: CEPSA GAS Y ELECTRICIDAD, S.A.U. | E166: 0.195
D167: CIDE HCENERGÍA S.A.U | E167: 0.265
D168: CIMA ENERGIA COMERCIALIZADORA SL | E168: 0.272
D169: CLEARVIEW ENERGY S.L. | E169: 0
D170: COMERCIALIZADORA ADI ESPAÑA, S.L. | E170: 0.268
D171: COMERCIALIZADORA DE ELECTRICIDAD Y GAS DEL MEDITERRÁNEO S.L | E171: 0
D172: COMERCIALIZADORA ELECTRICA DE CADIZ, S.A.U | E172: 0
D173: COMERCIALIZADORA ELECTRICA PENINSULAR S.L. | E173: 0.273
D174: COMERCIALIZADORA ENERGÉTICA SOSTENIBLE, S.A.U. | E174: 0
D175: CONECTA2 ENERGIA, S.L. | E175: 0.215
D176: COOPERATIVA ELECTRICA DE CASTELLAR, S.C.V (COMERC) | E176: 0
D177: COOPERATIVA ELÉCTRICA BENÉFICA SAN FRANCISCO DE ASÍS, COOP. V. | E177: 0.238
D178: COX ENERGÍA COMERCIALIZADORA ESPAÑA S.L.U. | E178: 0
D179: CYE ENERGIA SL | E179: 0.272
D180: DAIMUZ ENERGÍA S.L. | E180: 0.214
D181: DISA ENERGIA ELECTRICA S.L. | E181: 0
D182: DOMESTICA GAS Y ELECTRICIDAD SLU | E182: 0
D183: E-LUZ ENERGY SOLUTIONS, S.L. | E183: 0.128
D184: ECOFUTURA LUZ ENERGÍA, S.L. | E184: 0.254
D185: EDP CLIENTES SAU | E185: 0.272
D186: EDP ESPAÑA, S.A | E186: 0.273
D187: EKILUZ ENERGÍA COMERCIALIZADORA, S.L. | E187: 0
D188: ELECNOVA SIGLO XXI SL | E188: 0.269
D189: ELECTRA AVELLANA COMERCIAL, S.L | E189: 0
D190: ELECTRA CALDENSE ENERGIA, S.A. | E190: 0
D191: ELECTRA DEL CARDENER ENERGIA, S.A. | E191: 0.249
D192: ELECTRA ENERGIA, S.A. | E192: 0.27
D193: ELECTRA NORTE ENERGÍA, S.A. | E193: 0.256
D194: ELECTRACOMERCIAL CENTELLES, S.L.UNIPERSONAL | E194: 0
D195: ELECTRICA DE GUIXES ENERGIA, SL | E195: 0.273
D196: ELECTRICA DE VINALESA SOCIEDAD COOPERATIVA VALENCIANA | E196: 0
D197: ELECTRICA SEROSENSE, S.L. | E197: 0.272
D198: ELECTRICA SOLLERENSE, S.A. | E198: 0
D199: ELECTRICIDAD ELEIA S.L. | E199: 0.273
D200: ELEVA 2 COMERCIALIZADORA, S.L | E200: 0
D201: ELÉCTRICA VAQUER ENERGIA, S.A | E201: 0.25
D202: EMPRESA DE ALUMBRADO ELECTRICO DE CEUTA, S.A. | E202: 0.273
D203: ENARA GESTIÓN Y MEDIACIÓN, S.L. | E203: 0
D204: ENDESA ENERGÍA RENOVABLE, S.L. | E204: 0
D205: ENDESA ENERGÍA S.A.U. | E205: 0.272
D206: ENDI ENERGY TRADING SL | E206: 0.267
D207: ENERCOLUZ ENERGIA SL | E207: 0.273
D208: ENERGIA DLR COMERCIALIZADORA, SL | E208: 0.273
D209: ENERGIA NUFRI SL | E209: 0.271
D210: ENERGIA VIVA SPAIN, S.L. | E210: 0.272
D211: ENERGY BY COGEN S.L.U. | E211: 0.273
D212: ENERGY STROM XXI SL | E212: 0.24
D213: ENERGY TRADER SOLUTIONS, S.L. | E213: 0.271
D214: ENERGYA VM GESTION DE ENERGÍA, S.L | E214: 0.273
... 114 more rows

Sheet Datos y cálculos (hidden)
A1: ID | B1: YEAR | C1: SEM | D1: D1 | E1: D2 | F1: D3 | G1: D4 | H1: D5 | I1: D6 | J1: D7 | K1: D8 | L1: D9 | M1: D10 | N1: D11 | O1: D12 | P1: D13 | Q1: P1B | R1: P2B | S1: P3B | T1: PBP1 | U1: PBP2 | V1: PBP3 | W1: PBP4 | X1: PBP5 | Y1: PBP6 | Z1: PBP7 | AA1: PBP8 | AB1: PBP9 | AC1: PBP10 | AD1: PBP11 | AE1: PBP12 | AF1: PBP13 | AG1: PBP14 | AH1: PBP15 | AI1: PBP16 | AJ1: PBP17 | AK1: PBP18 | AL1: PBP19 | AM1: E1B | AN1: E2B | AO1: E3B | AP1: E4B | AQ1: E5B | AR1: E6 | AS1: E7 | AT1: E8 | AU1: E9 | AV1: E10 | AW1: E11 | AX1: E12 | AY1: EBP1 | AZ1: E13 | BA1: EBP21 | BB1: EBP22 | BC1: EBP3 | BD1: EBP4 | BE1: EBP5 | BF1: EBP61 | BG1: EBP62 | BH1: EBP7 | BI1: A1B | BJ1: A2B | BK1: ABP1 | BL1: ABP2 | BM1: ABP3 | BN1: ABP41 | BO1: ABP42 | BP1: ABP5 | BQ1: R1B | BR1: R2B | BS1: R1 | BT1: R2 | BU1: R3 | BV1: R4 | BW1: R5 | BX1: R6 | BY1: RBP1 | BZ1: RBP2 | CA1: RBP3 | CB1: RBP41 | CC1: RBP42 | CD1: RBP43 | CE1: RBP44 | CF1: RBP45 | CG1: RBP5 | CH1: RBP6 | CI1: RBP7 | CJ1: RBP8 | CK1: RBP9 | CL1: RA1B | CM1: RA2B | CN1: RABP1 | CO1: RABP11 | CP1: RABP2 | CQ1: RABP3 | CR1: RABP4 | CS1: RABP5 | CT1: RABP6 | CU1: PBP | CV1: E2B_val | CW1: EI | CX1: EBP | CY1: E1B1 | CZ1: E1B2 | DA1: E1B3 | DB1: E3B1 | DC1: E3B2 | DD1: E3B3 | DE1: E61 | DF1: E71 | DG1: E81 | DH1: E62 | DI1: E72 | DJ1: E82 | DK1: E63 | DL1: E73 | DM1: E83 | DN1: A1B1 | DO1: A1B2 | DP1: A1B3 | DQ1: A2B1 | DR1: A2B2 | DS1: A2B3 | DT1: ABP | DU1: R1P | DV1: R2P | DW1: R3P | DX1: R4P | DY1: R5P | DZ1: R6P | EA1: R1F | EB1: R2F | EC1: R3F | ED1: R4F | EE1: R5F | EF1: R6F | EG1: R1FP | EH1: R2FP | EI1: R3FP | EJ1: R4FP | EK1: R5FP | EL1: R6FP | EM1: RVal | EN1: R11 | EO1: R21 | EP1: R31 | EQ1: R41 | ER1: R51 | ES1: R61 | ET1: R12 | EU1: R22 | EV1: R32 | EW1: R42 | EX1: R52 | EY1: R62 | EZ1: R13 | FA1: R23 | FB1: R33 | FC1: R43 | FD1: R53 | FE1: R63 | FF1: RTot | FG1: RTotP | FH1: RBP | FI1: RABP
A2: =VLOOKUP(A1,Información!$A$3:$C$19,3,FALSE) -> 0 | B2: =VLOOKUP(B1,Información!$A$3:$C$19,3,FALSE) -> 0 | C2: =VLOOKUP(C1,Información!$A$3:$C$19,3,FALSE) -> 0 | D2: =VLOOKUP(D1,Información!$A$3:$C$19,3,FALSE) -> 0 | E2: =VLOOKUP(E1,Información!$A$3:$C$19,3,FALSE) -> 0 | F2: =VLOOKUP(F1,Información!$A$3:$C$19,3,FALSE) -> 0 | G2: =VLOOKUP(G1,Información!$A$3:$C$19,3,FALSE) -> 0 | H2: =VLOOKUP(H1,Información!$A$3:$C$19,3,FALSE) -> 0 | I2: =VLOOKUP(I1,Información!$A$3:$C$19,3,FALSE) -> 0 | J2: =VLOOKUP(J1,Información!$A$3:$C$19,3,FALSE) -> 0 | K2: =VLOOKUP(K1,Información!$A$3:$C$19,3,FALSE) -> 0 | L2: =VLOOKUP(L1,Información!$A$3:$C$19,3,FALSE) -> 0 | M2: =VLOOKUP(M1,Información!$A$3:$C$19,3,FALSE) -> 0 | N2: =VLOOKUP(N1,Información!$A$3:$C$19,3,FALSE) -> 0 | O2: =VLOOKUP(O1,Información!$A$3:$C$19,3,FALSE) -> 0 | P2: =VLOOKUP(P1,Información!$A$3:$C$19,3,FALSE) -> 0 | Q2: =VLOOKUP(Q1,Plan!$A$4:$C$56,3,FALSE) -> 0 | R2: =VLOOKUP(R1,Plan!$A$4:$C$56,3,FALSE) -> 0 | S2: =VLOOKUP(S1,Plan!$A$4:$C$56,3,FALSE) -> 0 | T2: =IF(VLOOKUP(T1,Plan!$A$4:$C$56,3,FALSE)="Sí",1,0) -> 0 | U2: =IF(VLOOKUP(U1,Plan!$A$4:$C$56,3,FALSE)="Sí",1,0) -> 0 | V2: =IF(VLOOKUP(V1,Plan!$A$4:$C$56,3,FALSE)="Sí",1,0) -> 0 | W2: =IF(VLOOKUP(W1,Plan!$A$4:$C$56,3,FALSE)="Sí",1,0) -> 0 | X2: =IF(VLOOKUP(X1,Plan!$A$4:$C$56,3,FALSE)="Sí",1,0) -> 0 | Y2: =IF(VLOOKUP(Y1,Plan!$A$4:$C$56,3,FALSE)="Sí",1,0) -> 0 | Z2: =IF(VLOOKUP(Z1,Plan!$A$4:$C$56,3,FALSE)="Sí",1,0) -> 0 | AA2: =IF(VLOOKUP(AA1,Plan!$A$4:$C$56,3,FALSE)="Sí",1,0) -> 0 | AB2: =IF(VLOOKUP(AB1,Plan!$A$4:$C$56,3,FALSE)="Sí",1,0) -> 0 | AC2: =IF(VLOOKUP(AC1,Plan!$A$4:$C$56,3,FALSE)="Sí",1,0) -> 0 | AD2: =IF(VLOOKUP(AD1,Plan!$A$4:$C$56,3,FALSE)="Sí",1,0) -> 0 | AE2: =IF(VLOOKUP(AE1,Plan!$A$4:$C$56,3,FALSE)="Sí",1,0) -> 0 | AF2: =IF(VLOOKUP(AF1,Plan!$A$4:$C$56,3,FALSE)="Sí",1,0) -> 0 | AG2: =IF(VLOOKUP(AG1,Plan!$A$4:$C$56,3,FALSE)="Sí",1,0) -> 0 | AH2: =IF(VLOOKUP(AH1,Plan!$A$4:$C$56,3,FALSE)="Sí",1,0) -> 0 | AI2: =IF(VLOOKUP(AI1,Plan!$A$4:$C$56,3,FALSE)="Sí",1,0) -> 0 | AJ2: =IF(VLOOKUP(AJ1,Plan!$A$4:$C$56,3,FALSE)="Sí",1,0) -> 0 | AK2: =IF(VLOOKUP(AK1,Plan!$A$4:$C$56,3,FALSE)="Sí",1,0) -> 0 | AL2: =IF(VLOOKUP(AL1,Plan!$A$4:$C$56,3,FALSE)="Sí",1,0) -> 0 | AM2: =VLOOKUP(AM1,Energía!$A$4:$C$37,3,FALSE) -> 0 | AN2: =VLOOKUP(AN1,Energía!$A$4:$C$37,3,FALSE) -> 0 | AO2: =VLOOKUP(AO1,Energía!$A$4:$C$37,3,FALSE) -> 0 | AP2: =VLOOKUP(AP1,Energía!$A$4:$C$37,3,FALSE) -> 0 | AQ2: =VLOOKUP(AQ1,Energía!$A$4:$C$37,3,FALSE) -> 0 | AR2: =VLOOKUP(AR1,Energía!$A$4:$C$37,3,FALSE) -> 0 | AS2: =VLOOKUP(AS1,Energía!$A$4:$C$37,3,FALSE) -> 0 | AT2: =VLOOKUP(AT1,Energía!$A$4:$C$37,3,FALSE) -> 0 | AU2: =VLOOKUP(AU1,Energía!$A$4:$C$37,3,FALSE) -> 0 | AV2: =VLOOKUP(AV1,Energía!$A$4:$C$37,3,FALSE) -> 0 | AW2: =VLOOKUP(AW1,Energía!$A$4:$C$37,3,FALSE) -> 0 | AX2: =VLOOKUP(AX1,Energía!$A$4:$C$37,3,FALSE) -> 0 | AY2: =IF(VLOOKUP(AY1,Energía!$A$4:$C$37,3,FALSE)="Si",1,0) -> 0 | AZ2: =VLOOKUP(AZ1,Energía!$A$4:$C$37,3,FALSE) -> 0 | BA2: =IF(VLOOKUP(BA1,Energía!$A$4:$C$37,3,FALSE)="Sí",1,0) -> 0 | BB2: =IF(VLOOKUP(BB1,Energía!$A$4:$C$37,3,FALSE)="Sí",1,0) -> 0 | BC2: =IF(VLOOKUP(BC1,Energía!$A$4:$C$37,3,FALSE)="Sí",1,0) -> 0 | BD2: =IF(VLOOKUP(BD1,Energía!$A$4:$C$37,3,FALSE)="Sí",1,0) -> 0 | BE2: =IF(VLOOKUP(BE1,Energía!$A$4:$C$37,3,FALSE)="Sí",1,0) -> 0 | BF2: =IF(VLOOKUP(BF1,Energía!$A$4:$C$37,3,FALSE)="Sí",1,0) -> 0 | BG2: =IF(VLOOKUP(BG1,Energía!$A$4:$C$37,3,FALSE)="Sí",1,0) -> 0 | BH2: =IF(VLOOKUP(BH1,Energía!$A$4:$C$37,3,FALSE)="Sí",1,0) -> 0 | BI2: =VLOOKUP(BI1,Agua!$A$4:$C$15,3,FALSE) -> 0 | BJ2: =VLOOKUP(BJ1,Agua!$A$4:$C$15,3,FALSE) -> 0 | BK2: =IF(VLOOKUP(BK1,Agua!$A$4:$C$15,3,FALSE)="Sí",1,0) -> 0 | BL2: =IF(VLOOKUP(BL1,Agua!$A$4:$C$15,3,FALSE)="Sí",1,0) -> 0 | BM2: =IF(VLOOKUP(BM1,Agua!$A$4:$C$15,3,FALSE)="Sí",1,0) -> 0 | BN2: =IF(VLOOKUP(BN1,Agua!$A$4:$C$15,3,FALSE)="Sí",1,0) -> 0 | BO2: =IF(VLOOKUP(BO1,Agua!$A$4:$C$15,3,FALSE)="Sí",1,0) -> 0 | BP2: =IF(VLOOKUP(BP1,Agua!$A$4:$C$15,3,FALSE)="Sí",1,0) -> 0 | BQ2: =VLOOKUP(BQ1,Residuos!$A$4:$C$34,3,FALSE) -> 0 | BR2: =Residuos!C5 -> 0 | BS2: =VLOOKUP(BS1,Residuos!$A$4:$C$34,3,FALSE) -> 0 | BT2: =VLOOKUP(BT1,Residuos!$A$4:$C$34,3,FALSE) -> 0 | BU2: =VLOOKUP(BU1,Residuos!$A$4:$C$34,3,FALSE) -> 0 | BV2: =VLOOKUP(BV1,Residuos!$A$4:$C$34,3,FALSE) -> 0 | BW2: =VLOOKUP(BW1,Residuos!$A$4:$C$34,3,FALSE) -> 0 | BX2: =VLOOKUP(BX1,Residuos!$A$4:$C$34,3,FALSE) -> 0 | BY2: =IF(VLOOKUP(BY1,Residuos!$A$4:$C$34,3,FALSE)="Sí",1,0) -> 0 | BZ2: =IF(VLOOKUP(BZ1,Residuos!$A$4:$C$34,3,FALSE)="Sí",1,0) -> 0 | CA2: =IF(VLOOKUP(CA1,Residuos!$A$4:$C$34,3,FALSE)="Sí",1,0) -> 0 | CB2: =IF(VLOOKUP(CB1,Residuos!$A$4:$C$34,3,FALSE)="Sí",1,0) -> 0 | CC2: =IF(VLOOKUP(CC1,Residuos!$A$4:$C$34,3,FALSE)="Sí",1,0) -> 0 | CD2: =IF(VLOOKUP(CD1,Residuos!$A$4:$C$34,3,FALSE)="Sí",1,0) -> 0 | CE2: =IF(VLOOKUP(CE1,Residuos!$A$4:$C$34,3,FALSE)="Sí",1,0) -> 0 | CF2: =IF(VLOOKUP(CF1,Residuos!$A$4:$C$34,3,FALSE)="Sí",1,0) -> 0 | CG2: =IF(VLOOKUP(CG1,Residuos!$A$4:$C$34,3,FALSE)="Sí",1,0) -> 0 | CH2: =IF(VLOOKUP(CH1,Residuos!$A$4:$C$34,3,FALSE)="Sí",1,0) -> 0 | CI2: =IF(VLOOKUP(CI1,Residuos!$A$4:$C$34,3,FALSE)="Sí",1,0) -> 0 | CJ2: =IF(VLOOKUP(CJ1,Residuos!$A$4:$C$34,3,FALSE)="Sí",1,0) -> 0 | CK2: =IF(VLOOKUP(CK1,Residuos!$A$4:$C$34,3,FALSE)="Sí",1,0) -> 0 | CL2: =VLOOKUP(CL1,'Deperdicio alimentario'!$A$4:$C$20,3,FALSE) -> 0 | CM2: =VLOOKUP(CM1,'Deperdicio alimentario'!$A$4:$C$20,3,FALSE) -> 0 | CN2: =IF(VLOOKUP(CN1,'Deperdicio alimentario'!$A$4:$C$20,3,FALSE)="Sí",1,0) -> 0 | CO2: =IF(VLOOKUP(CO1,'Deperdicio alimentario'!$A$4:$C$20,3,FALSE)="Sí",1,0) -> 0 | CP2: =IF(VLOOKUP(CP1,'Deperdicio alimentario'!$A$4:$C$20,3,FALSE)="Sí",1,0) -> 0 | CQ2: =IF(VLOOKUP(CQ1,'Deperdicio alimentario'!$A$4:$C$20,3,FALSE)="Sí",1,0) -> 0 | CR2: =IF(VLOOKUP(CR1,'Deperdicio alimentario'!$A$4:$C$20,3,FALSE)="Sí",1,0) -> 0 | CS2: =IF(VLOOKUP(CS1,'Deperdicio alimentario'!$A$4:$C$20,3,FALSE)="Sí",1,0) -> 0 | CT2: =IF(VLOOKUP(CT1,'Deperdicio alimentario'!$A$4:$C$20,3,FALSE)="Sí",1,0) -> 0 | CU2: =SUM(T2:AL2) -> 0 | CV2: =HLOOKUP('Datos y cálculos'!AN2,Energía!$E$6:$K$7,2,FALSE) ->  | CW2: =(HLOOKUP(AU2,Energía!$E$6:$K$7,2,FALSE)+HLOOKUP(AV2,Energía!$E$6:$K$7,2,FALSE)+HLOOKUP(AW2,Energía!$E$6:$K$7,2,FALSE)+HLOOKUP(AX2,Energía!$E$6:$K$7,2,FALSE))/4 ->  | CX2: =SUM(BA2:BH2)+AY2 -> 0 | CY2: =AM2*1000/N2 ->  | CZ2: =AM2*1000/O2 ->  | DA2: =AM2*1000/L2 ->  | DB2: =(AO2*AR2/100)*1000/N2 ->  | DC2: =(AO2*AR2/100)*1000/O2 ->  | DD2: =(AO2*AR2/100)*1000/L2 ->  | DE2: =AR2*1000/N2 ->  | DF2: =AS2*1000/N2 ->  | DG2: =AT2*1000/N2 ->  | DH2: =AR2*1000/O2 ->  | DI2: =AS2*1000/O2 ->  | DJ2: =AT2*1000/O2 ->  | DK2: =AR2*1000/L2 ->  | DL2: =AS2*1000/L2 ->  | DM2: =AT2*1000/L2 ->  | DN2: =(BI2*BJ2/100)/N2 ->  | DO2: =(BI2*BJ2/100)/O2 ->  | DP2: =(BI2*BJ2/100)/L2 ->  | DQ2: =BJ2/N2 ->  | DR2: =BJ2/O2 ->  | DS2: =BJ2/L2 ->  | DT2: =SUM(BK2:BP2) -> 0 | DU2: =BS2 -> 0 | DV2: 0 | DW2: 0 | DX2: 0 | DY2: 0 | DZ2: 0 | EA2: =BS2*100/SUM($BS$2:$BX$2) ->  | EG2: =DU2*100/SUM($DU$2:$DZ$2) ->  | EH2: =DV2*100/SUM($DU$2:$DZ$2) ->  | EM2: =100-EF2 ->  | EN2: =BS2*1000/$N$2 ->  | ET2: =BS2*1000/$O$2 ->  | EZ2: =BS2*1000/$L$2 ->  | FF2: =SUM(BS2:BX2) -> 0 | FG2: =SUM(DU2:DZ2) -> 0 | FH2: =SUM(BY2:CK2) -> 0 | FI2: =SUM(CN2:CT2) -> 0
A3: Hotel Pepe | B3: 2023 | C3: 52 | D3: Valencia | E3: * | F3: Complejo turístico/ resort – Nivel superior | G3: Urbano – en el centro de la ciudad | H3: Gestión de la cadena | I3: Cadenas de lujo | J3: Todo el año | K3: Propio | L3: 2000 | M3: 90 | N3: 19000 | O3: 17000 | P3: 20 | Q3: 5 | R3: 35 | S3: 10 | T3: 1 | U3: 0 | V3: 1 | W3: 1 | X3: 1 | Y3: 1 | Z3: 1 | AA3: 1 | AB3: 1 | AC3: 1 | AD3: 1 | AE3: 1 | AF3: 1 | AG3: 1 | AH3: 1 | AI3: 1 | AJ3: 0 | AK3: 1 | AL3: 1 | AM3: 27.03 | AN3: A | AO3: 100 | AP3: 100 | AQ3: 0 | AR3: 320000 | AS3: 0 | AT3: 200000 | AU3: C | AV3: F | AW3: A | AX3: C | AY3: 1 | AZ3: 1000000 | BA3: 1 | BB3: 1 | BC3: 1 | BD3: 1 | BE3: 1 | BF3: 0 | BG3: 0 | BH3: 0 | BI3: 33 | BJ3: 8480000 | BK3: 0 | BL3: 1 | BM3: 1 | BN3: 0 | BO3: 1 | BP3: 1 | BQ3: 2.137 | BR3: 0 | BS3: 52 | BT3: 156 | BU3: 260 | BV3: 104 | BW3: 208 | BX3: 936 | BY3: 1 | BZ3: 1 | CA3: 0 | CB3: 0 | CC3: 0 | CD3: 1 | CE3: 0 | CF3: 0 | CG3: 0 | CH3: 0 | CI3: 0 | CJ3: 0 | CK3: 0 | CL3: 20 | CM3: 10 | CN3: 0 | CO3: 0 | CP3: 0 | CQ3: 1 | CR3: 0 | CS3: 0 | CT3: 0 | CU3: 17 | CV3: 1 | CW3: 0.625 | CX3: 6 | CY3: 1.422631579 | CZ3: 1.59 | DA3: 13.515 | DB3: 16842.10526 | DC3: 18823.52941 | DD3: 160000 | DE3: 16842.10526 | DF3: 0 | DG3: 10526.31579 | DH3: 18823.52941 | DI3: 0 | DJ3: 11764.70588 | DK3: 160000 | DL3: 0 | DM3: 100000 | DN3: 147.2842105 | DO3: 164.6117647 | DP3: 1399.2 | DQ3: 446.3157895 | DR3: 498.8235294 | DS3: 4240 | DT3: 4 | EA3: 3.03030303 | EB3: 9.090909091 | EC3: 15.15151515 | ED3: 6.060606061 | EE3: 12.12121212 | EF3: 54.54545455 | EM3: 45.45454545 | EN3: 2.736842105 | EO3: 8.210526316 | EP3: 13.68421053 | EQ3: 5.473684211 | ER3: 10.94736842 | ES3: 49.26315789 | ET3: 3.058823529 | EU3: 9.176470588 | EV3: 15.29411765 | EW3: 6.117647059 | EX3: 12.23529412 | EY3: 55.05882353 | EZ3: 26 | FA3: 78 | FB3: 130 | FC3: 52 | FD3: 104 | FE3: 468 | FF3: 1716 | FH3: 3 | FI3: 1
L4: =L2-L3 -> -2000 | M4: =M2-M3 -> -90 | N4: -19000 | O4: -17000 | P4: -20 | Q4: -5 | R4: -35 | S4: -10 | T4: -1 | U4: 0 | V4: -1 | W4: -1 | X4: -1 | Y4: -1 | Z4: -1 | AA4: -1 | AB4: -1 | AC4: -1 | AD4: -1 | AE4: -1 | AF4: -1 | AG4: -1 | AH4: -1 | AI4: -1 | AJ4: 0 | AK4: -1 | AL4: -1 | AM4: -27.03 | AO4: -100 | AP4: -100 | AQ4: 0 | AR4: -320000 | AS4: 0 | AT4: -200000 | AY4: -1 | AZ4: -1000000 | BA4: -1 | BB4: -1 | BC4: -1 | BD4: -1 | BE4: -1 | BF4: 0 | BG4: 0 | BH4: 0 | BI4: -33 | BJ4: -8480000 | BK4: 0 | BL4: -1 | BM4: -1 | BN4: 0 | BO4: -1 | BP4: -1 | BQ4: -2.137 | BR4: =BR2-BR3 -> 0 | BS4: =BS2-BS3 -> -52 | BT4: =BT2-BT3 -> -156 | BU4: =BU2-BU3 -> -260 | BV4: =BV2-BV3 -> -104 | BW4: =BW2-BW3 -> -208 | BX4: =BX2-BX3 -> -936 | BY4: =BY2-BY3 -> -1 | BZ4: =BZ2-BZ3 -> -1 | CA4: =CA2-CA3 -> 0 | CB4: =CB2-CB3 -> 0 | CC4: =CC2-CC3 -> 0 | CD4: -1 | CE4: 0 | CF4: 0 | CG4: 0 | CH4: 0 | CI4: 0 | CJ4: 0 | CK4: 0 | CL4: -20 | CM4: -10 | CN4: 0 | CO4: 0 | CP4: 0 | CQ4: -1 | CR4: 0 | CS4: 0 | CT4: 0 | CU4: -17 | CX4: -6 | DN4: =DN2-DN3 ->  | DT4: -4 | DU4: 0 | DV4: 0 | DW4: 0 | DX4: 0 | DY4: 0 | DZ4: 0 | EP4: =EP2-EP3 ->  | FF4: -1716 | FG4: 0 | FH4: -3 | FI4: -1

Sheet Scale (hidden)
A1: Indicador | B1: Min | C1: Bajo | D1: Medio | E1: Alto | F1: Max | G1: Dir | H1: Dim | I1: Sdim | J1: Pdim | K1: Psdim | L1: Puntos | M1: referencia | T1: Dimension | U1: Puntos | W1: Subdimension
A2: P1B | B2: 0 | C2: 10 | D2: 20 | E2: 30 | F2: 40 | G2: 0 | H2: Planificación y Gestión Circular | I2: Inversión | J2: =IF(H2="",0,VLOOKUP(H2,$T$2:$U$8,2,FALSE)) -> 20 | K2: =IF(I2="",0,VLOOKUP(I2,$W$2:$X$28,2,FALSE)) -> 0.2 | L2: =J2*K2 -> 4 | T2: Planificación y Gestión Circular | U2: 20 | W2: Inversión | X2: 0.2 | Y2: Planificación y Gestión Circular
A3: P2B | B3: 0 | C3: 25 | D3: 50 | E3: 75 | F3: 100 | G3: 0 | H3: Planificación y Gestión Circular | I3: Formación | J3: 20 | K3: 0.05 | L3: =J3*K3 -> 1 | T3: Energía | U3: 20 | W3: Formación | X3: 0.05 | Y3: Planificación y Gestión Circular
A4: P3B | B4: 0 | C4: 25 | D4: 50 | E4: 75 | F4: 100 | G4: 0 | H4: Planificación y Gestión Circular | I4: Compromiso circular de proveedores | J4: 20 | K4: 0.05 | L4: 1 | T4: Agua | U4: 20 | W4: Compromiso circular de proveedores | X4: 0.05 | Y4: Planificación y Gestión Circular
A5: P2_3B | B5: 0 | C5: 25 | D5: 50 | E5: 75 | F5: 100 | G5: 0 | H5: Planificación y Gestión Circular | I5: Formación | J5: 20 | K5: 0.05 | L5: 1 | T5: Residuos | U5: 20 | W5: Buenas Prácticas Planifircación y Gestión Circular | X5: 0.7 | Y5: Planificación y Gestión Circular
A6: PBP | B6: 0 | C6: =F6*0.25 -> 4.75 | D6: =F6*0.5 -> 9.5 | E6: =F6*0.75 -> 14.25 | F6: 19 | G6: 0 | H6: Planificación y Gestión Circular | I6: Buenas Prácticas Planifircación y Gestión Circular | J6: 20 | K6: 0.7 | L6: 14 | T6: Desperdicio Alimentario | U6: 20 | W6: Consumo energético huella de carbono hab | X6: 0.1 | Y6: Energía
A7: E1B2 | B7: 24.5 | C7: 19 | D7: 13.5 | E7: 8 | F7: 2.5 | G7: 1 | H7: Energía | I7: Consumo energético huella de carbono hab | J7: 20 | K7: 0.1 | L7: 2 | M7: Greenview | N7: hab ocu | U7: 0 | W7: Consumo energético huella de carbono m2 | X7: 0.05 | Y7: Energía
A8: E1B3 | B8: 85 | C8: 70 | D8: 55 | E8: 40 | F8: 25 | G8: 1 | H8: Energía | I8: Certificación Energética Edificio | J8: 20 | K8: 0.1 | L8: 2 | M8: Greenview | N8: m2 | T8: Nivel de Circularidad | U8: =SUM(U2:U6) -> 100 | W8: Certificación Energética Edificio | X8: 0.1 | Y8: Energía
A9: E2B_val | B9: 0 | C9: 0.25 | D9: 0.5 | E9: 0.75 | F9: 1 | G9: 0 | H9: Energía | I9: Certificación Energética Edificio | J9: 20 | K9: 0.1 | L9: 2 | W9: Certificación Energética Instalaciones | X9: 0.1 | Y9: Energía
A10: EI | B10: 0 | C10: 0.25 | D10: 0.5 | E10: 0.75 | F10: 1 | G10: 0 | H10: Energía | I10: Certificación Energética Instalaciones | J10: 20 | K10: 0.1 | L10: 2 | W10: Autoabastecimiento Energía | X10: 0.1 | Y10: Energía
A11: E3B | B11: 0 | C11: 7.5 | D11: 15 | E11: 22.5 | F11: 30 | G11: 0 | H11: Energía | I11: Autoabastecimiento Energía | J11: 20 | K11: 0.1 | L11: 2 | M11: Greenview | W11: Consumo energético por hab | X11: 0.1 | Y11: Energía
A12: E62 | B12: 87.5 | C12: 70 | D12: 52.5 | E12: 35 | F12: 17.5 | G12: 1 | H12: Energía | I12: Consumo energético por hab | J12: 20 | K12: 0.1 | L12: 2 | M12: Greenview | N12: hab ocu | W12: Consumo energético por m2 | X12: 0.05 | Y12: Energía
A13: E63 | B13: 330 | C13: 280 | D13: 230 | E13: 180 | F13: 130 | G13: 1 | H13: Energía | I13: Consumo energético por m2 | J13: 20 | K13: 0.05 | L13: 1 | M13: Greenview yconsumo energético de hoteles de la Comunidad Valenciana | W13: Buenas Prácticas Energia | X13: 0.4 | Y13: Energía
A14: EBP | B14: 0 | C14: =F14*0.25 -> 2 | D14: =F14*0.5 -> 4 | E14: =F14*0.75 -> 6 | F14: 8 | G14: 0 | H14: Energía | I14: Buenas Prácticas Energia | J14: 20 | K14: 0.4 | L14: 8 | W14: Autoabastecimiento Agua | X14: 0.2 | Y14: Agua
A15: A1B | B15: 0 | C15: 25 | D15: 50 | E15: 75 | F15: 100 | G15: 0 | H15: Agua | I15: Autoabastecimiento Agua | J15: 20 | K15: 0.2 | L15: 4 | W15: Consumo Agua por habitación | X15: 0.3 | Y15: Agua
A16: A2B1 | B16: =(C16-D16)+C16 -> 490 | C16: 440 | D16: 390 | E16: 340 | F16: =E16-(D16-E16) -> 290 | G16: 1 | H16: Agua | I16: Consumo Agua por huesped | J16: 20 | M16: revisar | W16: Consumo Agua por m2 | X16: 0.1 | Y16: Agua
A17: A2B2 | B17: 685 | C17: 570 | D17: 455 | E17: 340 | F17: =E17-(D17-E17) -> 225 | G17: 1 | H17: Agua | I17: Consumo Agua por habitación | J17: 20 | K17: 0.3 | L17: 6 | M17: Greenview | N17: hab ocu | W17: Buenas Prácticas Agua | X17: 0.4 | Y17: Agua
A18: A2B3 | B18: 3000 | C18: 2650 | D18: 2000 | E18: 1400 | F18: 800 | G18: 1 | H18: Agua | I18: Consumo Agua por m2 | J18: 20 | K18: 0.1 | L18: 2 | M18: Greenview | N18: m2 | W18: Residuos valorizados | X18: 0.5 | Y18: Residuos
A19: A1_2B | B19: 0 | C19: 0.25 | D19: 0.5 | E19: 0.75 | F19: 1 | G19: 0 | H19: Agua | I19: Consumo Agua por habitación | J19: 20 | K19: 0.3 | L19: 6 | W19: Residuos construcción | X19: 0.1 | Y19: Residuos
A20: ABP | B20: 0 | C20: =F20*0.25 -> 1.5 | D20: =F20*0.5 -> 3 | E20: =F20*0.75 -> 4.5 | F20: 6 | G20: 0 | H20: Agua | I20: Buenas Prácticas Agua | J20: 20 | K20: 0.4 | L20: 8 | W20: Buenas Prácticas Residuos | X20: 0.4 | Y20: Residuos
A21: RVal | B21: 0 | C21: 25 | D21: 50 | E21: 75 | F21: 100 | G21: 0 | H21: Residuos | I21: Residuos valorizados | J21: 20 | K21: 0.5 | L21: 10 | W21: Alimentos km0 | X21: 0.2 | Y21: Desperdicio Alimentario
A22: R2B | B22: 0 | C22: 25 | D22: 50 | E22: 75 | F22: 100 | G22: 0 | H22: Residuos | I22: Residuos construcción | J22: 20 | K22: 0.1 | L22: 2 | W22: Alimentos reducción envases | X22: 0.2 | Y22: Desperdicio Alimentario
A23: RBP | B23: 0 | C23: =F23*0.25 -> 3 | D23: =F23*0.5 -> 6 | E23: =F23*0.75 -> 9 | F23: 12 | G23: 0 | H23: Residuos | I23: Buenas Prácticas Residuos | J23: 20 | K23: 0.4 | L23: =J23*K23 -> 8 | W23: Buenas Prácticas Desperdicio Alimentario | X23: 0.6 | Y23: Desperdicio Alimentario
A24: RA1B | B24: 0 | C24: 12.5 | D24: 25 | E24: 37.5 | F24: 50 | G24: 0 | H24: Desperdicio Alimentario | I24: Alimentos km0 | J24: 20 | K24: 0.2 | L24: 4 | W24: Planificación y Gestión Circular | X24: =X2+X3+X4+X5 -> 1
A25: RA2B | B25: 0 | C25: 12.5 | D25: 25 | E25: 37.5 | F25: 50 | G25: 0 | H25: Desperdicio Alimentario | I25: Alimentos reducción envases | J25: 20 | K25: 0.2 | L25: 4 | W25: Energía | X25: =SUM(X6:X13) -> 1
A26: RABP | B26: 0 | C26: =F26*0.25 -> 1.25 | D26: =F26*0.5 -> 2.5 | E26: =F26*0.75 -> 3.75 | F26: 5 | G26: 0 | H26: Desperdicio Alimentario | I26: Buenas Prácticas Desperdicio Alimentario | J26: 20 | K26: 0.6 | L26: 12 | W26: Agua | X26: =X14+X15+X16+X17 -> 1
A27: Planificación y Gestión Circular | B27: 0 | C27: =(F27-B27)*0.25 -> 5 | D27: =(F27-B27)*0.5 -> 10 | E27: =(F27-B27)*0.75 -> 15 | F27: =U2 -> 20 | G27: 0 | H27: Planificación y Gestión Circular | J27: 20 | K27: =IF(H27="",0,VLOOKUP(H27,$W$2:$X$29,2,FALSE)) -> 1 | L27: 20 | W27: Residuos | X27: =X18+X19+X20 -> 1
A28: Energía | B28: 0 | C28: =(F28-B28)*0.25 -> 5 | D28: =(F28-B28)*0.5 -> 10 | E28: =(F28-B28)*0.75 -> 15 | F28: =U3 -> 20 | G28: 0 | H28: Energía | J28: 20 | K28: 1 | L28: 20 | W28: Desperdicio Alimentario | X28: =X21+X22+X23 -> 1
A29: Agua | B29: 0 | C29: =(F29-B29)*0.25 -> 5 | D29: =(F29-B29)*0.5 -> 10 | E29: =(F29-B29)*0.75 -> 15 | F29: =U4 -> 20 | G29: 0 | H29: Agua | J29: 20 | K29: 1 | L29: 20 | W29: Nivel de Circularidad | X29: 1
A30: Residuos | B30: 0 | C30: =(F30-B30)*0.25 -> 5 | D30: =(F30-B30)*0.5 -> 10 | E30: =(F30-B30)*0.75 -> 15 | F30: =U5 -> 20 | G30: 0 | H30: Residuos | J30: 20 | K30: 1 | L30: 20
A31: Desperdicio Alimentario | B31: 0 | C31: =(F31-B31)*0.25 -> 5 | D31: =(F31-B31)*0.5 -> 10 | E31: =(F31-B31)*0.75 -> 15 | F31: =U6 -> 20 | G31: 0 | H31: Desperdicio Alimentario | J31: 20 | K31: 1 | L31: 20
A32: Nivel de Circularidad | B32: =B27+B28+B29+B30+B31 -> 0 | C32: 25 | D32: 50 | E32: 75 | F32: =F27+F28+F29+F30+F31 -> 100 | G32: 0 | H32: Nivel de Circularidad | J32: 100 | K32: 1 | L32: 100

Sheet Hoja1 (hidden)
